{"text_format":"1","workbook":"xlsx","n_sheets":7,"sheets":["NO_TableParameter","Plaza","Central_NPCSpawn","Central_CraftingToolSkin","Plaza_SpawnPoint","Plaza_ExchangeItem","NO_참조테이블"],"not_rendered":{"charts":0,"images":0,"macros":0,"external_links":3,"defined_names":0,"comments":0,"pivot_tables":0},"unopened":[],"bounds":{"document_bytes":16777216,"sheet_cells":100000,"rows_first":2000,"rows_last":500,"rows_between":2000,"halvings":0,"cell_chars":16384,"cell_head_chars":4096},"cells_cut":0,"cells_raw":0,"read":"whole","date_system":"1900"}

{"sheet":"NO_TableParameter","index":0,"n_rows":13,"n_cols":8,"rows_kept":13,"cut":false,"hidden":false,"merged":[]}
["PlazaTable",null,null,null,null,null,"[PF_EnumTypeData.xlsm]EPlazaType!Key","[PF_EnumTypeData.xlsm]EPlazaType!Desc"]
["칼럼 영문명","자료형","칼럼 한글명","설명",null,null,"열거형 숫자","요약"]
["ServiceType","string","서비스 타입",null,null,null,1,"벌목 랜드마크"]
["Key","int","플라자 ID",null,null,null,2,"빌리지"]
["#FieldName","none","구역명",null,null,null,3,"센트럴타운"]
["FieldID","int","구역 ID",null,null,null,4,"일반 랜드마크"]
["#PlazaType","none","플라자 종류"]
["PlazaType","EPlazaType","플라자 종류"]
["PlazaAddress","int","플라자 주소","PlazaAddress Key값 입력"]
["#FieldDesc","none","구역 설명 텍스트"]
["FieldDesc","stringkey","구역 설명 텍스트","팝업창에 출력되는 스크립트"]
["IsPlazaPopup","bool","플라자 팝업"]
["PlazaImage","string","이미지명","팝업창에 출력되는 이미지"]

{"sheet":"Plaza","index":1,"n_rows":12,"n_cols":16,"rows_kept":12,"cut":false,"hidden":false,"merged":[]}
["ServiceType","Key","#FieldName","FieldName","FieldID","#PlazaType","PlazaType","PlazaAddress","#FieldDesc","FieldDesc","IsPlazaPopup","PlazaImage","Sortindex"]
["string","int","none","stringkey","int","none","EPlazaType","int","none","stringkey","bool","string","int"]
["All","All","Client","All","All","Client","All","All","Client","All","Client","Client","Client"]
["서비스 타입","플라자 ID","구역명","필드명","구역 ID","구역명","플라자 종류","플라자 주소 ID","구역 설명 텍스트","구역 설명 텍스트","플라자 팝업","이미지명","순서"]
["NONE",1,"패션 스트릿",{"$f":"INDEX([2]KOR_StringTable!$B:$B,MATCH(C5,[2]KOR_StringTable!$C:$C,0))","v":"Zone_104"},{"$f":"INDEX(NO_참조테이블!$E:$E,MATCH(C5,NO_참조테이블!$F:$F,0))","v":108},"일반 랜드마크",{"$f":"INDEX(NO_참조테이블!$N:$N,MATCH(Plaza!F5,NO_참조테이블!$O:$O,0))","v":4},1,"나만의 패션 스타일을 뽐내봐!",{"$f":"INDEX([2]KOR_StringTable!$B:$B,MATCH(I5,[2]KOR_StringTable!$C:$C,0))","v":"Zone_104_Desc"},0,"Plaza1_image",1]
["NONE",2,"어드벤처 포레스트",{"$f":"INDEX([2]KOR_StringTable!$B:$B,MATCH(C6,[2]KOR_StringTable!$C:$C,0))","v":"Field_106"},{"$f":"INDEX(NO_참조테이블!$E:$E,MATCH(C6,NO_참조테이블!$F:$F,0))","v":106},"일반 랜드마크",{"$f":"INDEX(NO_참조테이블!$N:$N,MATCH(Plaza!F6,NO_참조테이블!$O:$O,0))","v":4},2,"친구들과 벌목을 할 수 있어요!",{"$f":"INDEX([2]KOR_StringTable!$B:$B,MATCH(I6,[2]KOR_StringTable!$C:$C,0))","v":"Field_106_Desc"},0,"Plaza2_image",2]
["DEV",3,"센트럴 타운",{"$f":"INDEX([2]KOR_StringTable!$B:$B,MATCH(C7,[2]KOR_StringTable!$C:$C,0))","v":"Field_105"},{"$f":"INDEX(NO_참조테이블!$E:$E,MATCH(C7,NO_참조테이블!$F:$F,0))","v":105},"센트럴타운",{"$f":"INDEX(NO_참조테이블!$N:$N,MATCH(Plaza!F7,NO_참조테이블!$O:$O,0))","v":3},3,"사랑스러운 주민들이 옹기종기 모여있는 곳",{"$f":"INDEX([2]KOR_StringTable!$B:$B,MATCH(I7,[2]KOR_StringTable!$C:$C,0))","v":"Field105_Desc"},0,"Plaza3_image",3]
["DEV",4,"패션 스퀘어",{"$f":"INDEX([2]KOR_StringTable!$B:$B,MATCH(C8,[2]KOR_StringTable!$C:$C,0))","v":"field_2001"},{"$f":"INDEX(NO_참조테이블!$E:$E,MATCH(C8,NO_참조테이블!$F:$F,0))","v":2001},"패션 스퀘어",{"$f":"INDEX(NO_참조테이블!$N:$N,MATCH(Plaza!F8,NO_참조테이블!$O:$O,0))","v":5},1,"나만의 패션 스타일을 뽐내봐!",{"$f":"INDEX([2]KOR_StringTable!$B:$B,MATCH(I8,[2]KOR_StringTable!$C:$C,0))","v":"Zone_104_Desc"},1,"Plaza4_image",1]
["DEV",5,"시나모롤 스퀘어",{"$f":"INDEX([2]KOR_StringTable!$B:$B,MATCH(C9,[2]KOR_StringTable!$C:$C,0))","v":"Field_2003"},{"$f":"INDEX(NO_참조테이블!$E:$E,MATCH(C9,NO_참조테이블!$F:$F,0))","v":2003},"일반 랜드마크",{"$f":"INDEX(NO_참조테이블!$N:$N,MATCH(Plaza!F9,NO_참조테이블!$O:$O,0))","v":4},5,"시나모롤을 만나러 가봐요!",{"$f":"INDEX([2]KOR_StringTable!$B:$B,MATCH(I9,[2]KOR_StringTable!$C:$C,0))","v":"Field_2003_Desc"},1,"Plaza5_image",4]
["DEV",6,"플레이 스퀘어",{"$f":"INDEX([2]KOR_StringTable!$B:$B,MATCH(C10,[2]KOR_StringTable!$C:$C,0))","v":"Field_2005"},{"$f":"INDEX(NO_참조테이블!$E:$E,MATCH(C10,NO_참조테이블!$F:$F,0))","v":2005},"일반 랜드마크",{"$f":"INDEX(NO_참조테이블!$N:$N,MATCH(Plaza!F10,NO_참조테이블!$O:$O,0))","v":4},6,"시나모롤을 만나러 가봐요!",{"$f":"INDEX([2]KOR_StringTable!$B:$B,MATCH(I10,[2]KOR_StringTable!$C:$C,0))","v":"Field_2003_Desc"},1,"Plaza5_image",5]
["DEV",7,"시나모롤 하우스",{"$f":"INDEX([2]KOR_StringTable!$B:$B,MATCH(C11,[2]KOR_StringTable!$C:$C,0))","v":"Field_2006"},{"$f":"INDEX(NO_참조테이블!$E:$E,MATCH(C11,NO_참조테이블!$F:$F,0))","v":2006},"일반 랜드마크",{"$f":"INDEX(NO_참조테이블!$N:$N,MATCH(Plaza!F11,NO_참조테이블!$O:$O,0))","v":4},6,"시나모롤을 만나러 가봐요!",{"$f":"INDEX([2]KOR_StringTable!$B:$B,MATCH(I11,[2]KOR_StringTable!$C:$C,0))","v":"Field_2003_Desc"},0,"Plaza5_image",1]
[null,null,null,null,null,null,null,null,null,null,null,null,null,null,null,"S"]

{"sheet":"Central_NPCSpawn","index":2,"n_rows":30,"n_cols":28,"rows_kept":30,"cut":false,"hidden":false,"merged":[]}
["ServiceType","Key","PlazaID","#PlazaType","PlazaType","#NPCName","NPCID","BGName","IsMonOut","IsTueOut","IsWedOut","IsThuOut","IsFriOut","IsSatOut","IsSunOut","IsMonIn","IsTueIn","IsWedIn","IsThuIn","IsFriIn","IsSatIn","IsSunIn","XCoord","YCoord","EventStartTime","EventEndTime","#LiveDate","#UpdateVersion"]
["string","int","int","none","EPlazaType","none","int","string","bool","bool","bool","bool","bool","bool","bool","bool","bool","bool","bool","bool","bool","bool","int","int","datetime","datetime","none","none"]
["All","All","All","Client","All","Client","All","Client","All","All","All","All","All","All","All","All","All","All","All","All","All","All","Client","Client","All","All","Client","Client"]
["서비스 타입","플라자 NPC ID","플라자 ID","구역명","플라자 종류","#NPC명","NPC ID","컷신 배경 스프라이트명","월요일","화요일","수요일","목요일","금요일","토요일","일요일","월요일 집","화요일 집","수요일 집","목요일 집","금요일 집","토요일 집","일요일 집","X 좌표","Y좌표","이벤트 시작 시간","이벤트 종료 시간","출시 일자","업데이트 버전"]
["DEV",1,1,"센트럴타운",{"$f":"INDEX(NO_참조테이블!$N:$N,MATCH(D5,NO_참조테이블!$O:$O,0))","v":3},"이브",{"$f":"INDEX(NO_참조테이블!$H:$H,MATCH(Central_NPCSpawn!F5,NO_참조테이블!$I:$I,0))","v":1},"villagebg_1",1,1,1,1,1,1,1,0,0,0,0,0,0,0,null,null,null,null,"2022-11-10",0]
["DEV",2,1,"센트럴타운",{"$f":"INDEX(NO_참조테이블!$N:$N,MATCH(D6,NO_참조테이블!$O:$O,0))","v":3},"토리",{"$f":"INDEX(NO_참조테이블!$H:$H,MATCH(Central_NPCSpawn!F6,NO_참조테이블!$I:$I,0))","v":2},"villagebg_1",0,0,0,0,0,0,0,0,0,0,0,0,0,0,null,null,null,null,"2022-11-10",0]
["DEV",3,1,"센트럴타운",{"$f":"INDEX(NO_참조테이블!$N:$N,MATCH(D7,NO_참조테이블!$O:$O,0))","v":3},"조이",{"$f":"INDEX(NO_참조테이블!$H:$H,MATCH(Central_NPCSpawn!F7,NO_참조테이블!$I:$I,0))","v":3},"villagebg_1",0,0,0,0,0,0,0,0,0,0,0,0,0,0,-32,27,null,null,"2022-11-10",0]
["DEV",4,1,"센트럴타운",{"$f":"INDEX(NO_참조테이블!$N:$N,MATCH(D8,NO_참조테이블!$O:$O,0))","v":3},"덕키",{"$f":"INDEX(NO_참조테이블!$H:$H,MATCH(Central_NPCSpawn!F8,NO_참조테이블!$I:$I,0))","v":4},"villagebg_1",0,0,0,0,0,0,0,0,0,0,0,0,0,0,-32,3,null,null,"2022-11-10",0]
["DEV",5,1,"센트럴타운",{"$f":"INDEX(NO_참조테이블!$N:$N,MATCH(D9,NO_참조테이블!$O:$O,0))","v":3},"피터",{"$f":"INDEX(NO_참조테이블!$H:$H,MATCH(Central_NPCSpawn!F9,NO_참조테이블!$I:$I,0))","v":5},"villagebg_1",0,0,0,0,0,0,0,0,0,0,0,0,0,0,-32,-20,null,null,"2022-11-10",0]
["DEV",6,1,"센트럴타운",{"$f":"INDEX(NO_참조테이블!$N:$N,MATCH(D10,NO_참조테이블!$O:$O,0))","v":3},"파커",{"$f":"INDEX(NO_참조테이블!$H:$H,MATCH(Central_NPCSpawn!F10,NO_참조테이블!$I:$I,0))","v":6},"villagebg_1",1,1,1,1,1,1,1,0,0,0,0,0,0,0,-32,-32,null,null,"2022-11-10",0]
["DEV",7,1,"센트럴타운",{"$f":"INDEX(NO_참조테이블!$N:$N,MATCH(D11,NO_참조테이블!$O:$O,0))","v":3},"테오",{"$f":"INDEX(NO_참조테이블!$H:$H,MATCH(Central_NPCSpawn!F11,NO_참조테이블!$I:$I,0))","v":7},"villagebg_1",0,0,0,0,0,0,0,0,0,0,0,0,0,0,4,-46,null,null,"2022-11-10",0]
["DEV",8,1,"센트럴타운",{"$f":"INDEX(NO_참조테이블!$N:$N,MATCH(D12,NO_참조테이블!$O:$O,0))","v":3},"올리버",{"$f":"INDEX(NO_참조테이블!$H:$H,MATCH(Central_NPCSpawn!F12,NO_참조테이블!$I:$I,0))","v":8},"villagebg_1",0,0,0,0,0,0,0,0,0,0,0,0,0,0,17,-46,null,null,"2022-11-10",0]
["DEV",9,1,"센트럴타운",{"$f":"INDEX(NO_참조테이블!$N:$N,MATCH(D13,NO_참조테이블!$O:$O,0))","v":3},"루비",{"$f":"INDEX(NO_참조테이블!$H:$H,MATCH(Central_NPCSpawn!F13,NO_참조테이블!$I:$I,0))","v":9},"villagebg_1",0,0,0,0,0,0,0,0,0,0,0,0,0,0,18,-31,null,null,"2022-11-10",0]
["DEV",10,1,"센트럴타운",{"$f":"INDEX(NO_참조테이블!$N:$N,MATCH(D14,NO_참조테이블!$O:$O,0))","v":3},"미아",{"$f":"INDEX(NO_참조테이블!$H:$H,MATCH(Central_NPCSpawn!F14,NO_참조테이블!$I:$I,0))","v":10},"villagebg_1",1,1,1,1,1,1,1,0,0,0,0,0,0,0,4,-31,null,null,"2022-11-10",0]
["DEV",11,1,"센트럴타운",{"$f":"INDEX(NO_참조테이블!$N:$N,MATCH(D15,NO_참조테이블!$O:$O,0))","v":3},"리아",{"$f":"INDEX(NO_참조테이블!$H:$H,MATCH(Central_NPCSpawn!F15,NO_참조테이블!$I:$I,0))","v":11},"villagebg_1",1,1,1,1,1,1,1,0,0,0,0,0,0,0,-5,-5,null,null,"2022-11-10",0]
["DEV",12,1,"센트럴타운",{"$f":"INDEX(NO_참조테이블!$N:$N,MATCH(D16,NO_참조테이블!$O:$O,0))","v":3},"콜",{"$f":"INDEX(NO_참조테이블!$H:$H,MATCH(Central_NPCSpawn!F16,NO_참조테이블!$I:$I,0))","v":12},"villagebg_1",1,1,1,1,1,1,1,0,0,0,0,0,0,0,-5,-5,null,null,"2022-11-10",0]
["DEV",13,1,"센트럴타운",{"$f":"INDEX(NO_참조테이블!$N:$N,MATCH(D17,NO_참조테이블!$O:$O,0))","v":3},"이안",{"$f":"INDEX(NO_참조테이블!$H:$H,MATCH(Central_NPCSpawn!F17,NO_참조테이블!$I:$I,0))","v":13},"villagebg_1",1,1,1,1,1,1,1,0,0,0,0,0,0,0,-5,-5,null,null,"2022-11-10",0]
["DEV",14,1,"센트럴타운",{"$f":"INDEX(NO_참조테이블!$N:$N,MATCH(D18,NO_참조테이블!$O:$O,0))","v":3},"로지",{"$f":"INDEX(NO_참조테이블!$H:$H,MATCH(Central_NPCSpawn!F18,NO_참조테이블!$I:$I,0))","v":14},"villagebg_1",0,0,0,0,0,0,0,0,0,0,0,0,0,0,-5,-5,null,null,"2022-11-10",0]
["DEV",15,1,"센트럴타운",{"$f":"INDEX(NO_참조테이블!$N:$N,MATCH(D19,NO_참조테이블!$O:$O,0))","v":3},"버기",{"$f":"INDEX(NO_참조테이블!$H:$H,MATCH(Central_NPCSpawn!F19,NO_참조테이블!$I:$I,0))","v":15},"villagebg_1",0,0,0,0,0,0,0,0,0,0,0,0,0,0,-5,-5,null,null,"2022-11-10",0]
["DEV",16,1,"센트럴타운",{"$f":"INDEX(NO_참조테이블!$N:$N,MATCH(D20,NO_참조테이블!$O:$O,0))","v":3},"올리버의 직원",{"$f":"INDEX(NO_참조테이블!$H:$H,MATCH(Central_NPCSpawn!F20,NO_참조테이블!$I:$I,0))","v":16},"villagebg_1",0,0,0,0,0,0,0,0,0,0,0,0,0,0,-5,-5,null,null,"2022-11-10",0]
["DEV",17,1,"센트럴타운",{"$f":"INDEX(NO_참조테이블!$N:$N,MATCH(D21,NO_참조테이블!$O:$O,0))","v":3},"이벤트 NPC",{"$f":"INDEX(NO_참조테이블!$H:$H,MATCH(Central_NPCSpawn!F21,NO_참조테이블!$I:$I,0))","v":17},"villagebg_1",0,0,0,0,0,0,0,0,0,0,0,0,0,0,-5,-5,null,null,"2022-11-10",0]
["DEV",18,4,"패션 스퀘어",{"$f":"INDEX(NO_참조테이블!$N:$N,MATCH(D22,NO_참조테이블!$O:$O,0))","v":5},"쿠로미",{"$f":"INDEX(NO_참조테이블!$H:$H,MATCH(Central_NPCSpawn!F22,NO_참조테이블!$I:$I,0))","v":2001},"villagebg_1",1,1,1,1,1,1,1,0,0,0,0,0,0,0,-32,-32,null,null,"2022-11-10",0]
["DEV",19,4,"패션 스퀘어",{"$f":"INDEX(NO_참조테이블!$N:$N,MATCH(D23,NO_참조테이블!$O:$O,0))","v":5},"마이 멜로디",{"$f":"INDEX(NO_참조테이블!$H:$H,MATCH(Central_NPCSpawn!F23,NO_참조테이블!$I:$I,0))","v":2002},"villagebg_1",1,1,1,1,1,1,1,0,0,0,0,0,0,0,4,-46,null,null,"2022-11-10",0]
["DEV",20,6,"플레이 스퀘어",{"$f":"INDEX(NO_참조테이블!$N:$N,MATCH(D24,NO_참조테이블!$O:$O,0))","v":7},"포차코",{"$f":"INDEX(NO_참조테이블!$H:$H,MATCH(Central_NPCSpawn!F24,NO_참조테이블!$I:$I,0))","v":3001},"villagebg_1",1,1,1,1,1,1,1,0,0,0,0,0,0,0,-32,5,null,null,"2022-11-10",0]
["DEV",21,6,"플레이 스퀘어",{"$f":"INDEX(NO_참조테이블!$N:$N,MATCH(D25,NO_참조테이블!$O:$O,0))","v":7},"한교동",{"$f":"INDEX(NO_참조테이블!$H:$H,MATCH(Central_NPCSpawn!F25,NO_참조테이블!$I:$I,0))","v":3002},"villagebg_1",1,1,1,1,1,1,1,0,0,0,0,0,0,0,-32,10,null,null,"2022-11-10",0]
["DEV",22,6,"플레이 스퀘어",{"$f":"INDEX(NO_참조테이블!$N:$N,MATCH(D26,NO_참조테이블!$O:$O,0))","v":7},"아히루노페클",{"$f":"INDEX(NO_참조테이블!$H:$H,MATCH(Central_NPCSpawn!F26,NO_참조테이블!$I:$I,0))","v":3005},"villagebg_1",1,1,1,1,1,1,1,0,0,0,0,0,0,0,-32,27,null,null,"2022-11-10",0]
["DEV",23,6,"플레이 스퀘어",{"$f":"INDEX(NO_참조테이블!$N:$N,MATCH(D27,NO_참조테이블!$O:$O,0))","v":7},"턱시도샘",{"$f":"INDEX(NO_참조테이블!$H:$H,MATCH(Central_NPCSpawn!F27,NO_참조테이블!$I:$I,0))","v":3006},"villagebg_1",1,1,1,1,1,1,1,0,0,0,0,0,0,0,-32,3,null,null,"2022-11-10",0]
["DEV",24,6,"플레이 스퀘어",{"$f":"INDEX(NO_참조테이블!$N:$N,MATCH(D28,NO_참조테이블!$O:$O,0))","v":7},"케로케로케로피",{"$f":"INDEX(NO_참조테이블!$H:$H,MATCH(Central_NPCSpawn!F28,NO_참조테이블!$I:$I,0))","v":3003},"villagebg_1",1,1,1,1,1,1,1,0,0,0,0,0,0,0,-32,-20,null,null,"2022-11-10",0]
["DEV",25,6,"플레이 스퀘어",{"$f":"INDEX(NO_참조테이블!$N:$N,MATCH(D29,NO_참조테이블!$O:$O,0))","v":7},"배드바츠마루",{"$f":"INDEX(NO_참조테이블!$H:$H,MATCH(Central_NPCSpawn!F29,NO_참조테이블!$I:$I,0))","v":3004},"villagebg_1",1,1,1,1,1,1,1,0,0,0,0,0,0,0,-32,-32,null,null,"2022-11-10",0]
["DEV",26,5,"시나모롤 스퀘어",{"$f":"INDEX(NO_참조테이블!$N:$N,MATCH(D30,NO_참조테이블!$O:$O,0))","v":6},"시나모롤",{"$f":"INDEX(NO_참조테이블!$H:$H,MATCH(Central_NPCSpawn!F30,NO_참조테이블!$I:$I,0))","v":1002},"villagebg_1",1,1,1,1,1,1,1,0,0,0,0,0,0,0,2,22,null,null,"2022-11-10",0]

{"sheet":"Central_CraftingToolSkin","index":3,"n_rows":5,"n_cols":6,"rows_kept":5,"cut":false,"hidden":false,"merged":[]}
["ServiceType","Key","PlazaKey","SpawnPointID","SpawnCraftingToolGroup","CraftingType"]
["string","int","int","int","int","ECraftingType"]
["All","All","Client","Client","Client","Client"]
["서비스 타입"]
["DEV",1,3,126,3,8]

{"sheet":"Plaza_SpawnPoint","index":4,"n_rows":249,"n_cols":5,"rows_kept":249,"cut":false,"hidden":false,"merged":[]}
["ServiceType","Key","#FieldName","FieldID","IsReverse"]
["string","int","none","int","bool"]
["All","All","Client","Client","Client"]
["서비스 타입","플라자 스폰 zone","구역명","필드 ID","회전 여부"]
["DEV",1,"센트럴 타운",{"$f":"INDEX(NO_참조테이블!$E:$E,MATCH(Plaza_SpawnPoint!C5,NO_참조테이블!$F:$F,0))","v":105},0]
["DEV",2,"센트럴 타운",{"$f":"INDEX(NO_참조테이블!$E:$E,MATCH(Plaza_SpawnPoint!C6,NO_참조테이블!$F:$F,0))","v":105},0]
["DEV",3,"센트럴 타운",{"$f":"INDEX(NO_참조테이블!$E:$E,MATCH(Plaza_SpawnPoint!C7,NO_참조테이블!$F:$F,0))","v":105},0]
["DEV",4,"센트럴 타운",{"$f":"INDEX(NO_참조테이블!$E:$E,MATCH(Plaza_SpawnPoint!C8,NO_참조테이블!$F:$F,0))","v":105},0]
["DEV",5,"센트럴 타운",{"$f":"INDEX(NO_참조테이블!$E:$E,MATCH(Plaza_SpawnPoint!C9,NO_참조테이블!$F:$F,0))","v":105},0]
["DEV",6,"센트럴 타운",{"$f":"INDEX(NO_참조테이블!$E:$E,MATCH(Plaza_SpawnPoint!C10,NO_참조테이블!$F:$F,0))","v":105},0]
["DEV",7,"센트럴 타운",{"$f":"INDEX(NO_참조테이블!$E:$E,MATCH(Plaza_SpawnPoint!C11,NO_참조테이블!$F:$F,0))","v":105},1]
["DEV",8,"센트럴 타운",{"$f":"INDEX(NO_참조테이블!$E:$E,MATCH(Plaza_SpawnPoint!C12,NO_참조테이블!$F:$F,0))","v":105},1]
["DEV",9,"센트럴 타운",{"$f":"INDEX(NO_참조테이블!$E:$E,MATCH(Plaza_SpawnPoint!C13,NO_참조테이블!$F:$F,0))","v":105},1]
["DEV",10,"그리너리 시티 빌리지",{"$f":"INDEX(NO_참조테이블!$E:$E,MATCH(Plaza_SpawnPoint!C14,NO_참조테이블!$F:$F,0))","v":109},0]
["DEV",11,"그리너리 시티 빌리지",{"$f":"INDEX(NO_참조테이블!$E:$E,MATCH(Plaza_SpawnPoint!C15,NO_참조테이블!$F:$F,0))","v":109},0]
["DEV",12,"그리너리 시티 빌리지",{"$f":"INDEX(NO_참조테이블!$E:$E,MATCH(Plaza_SpawnPoint!C16,NO_참조테이블!$F:$F,0))","v":109},0]
["DEV",13,"그리너리 시티 빌리지",{"$f":"INDEX(NO_참조테이블!$E:$E,MATCH(Plaza_SpawnPoint!C17,NO_참조테이블!$F:$F,0))","v":109},0]
["DEV",14,"그리너리 시티 빌리지",{"$f":"INDEX(NO_참조테이블!$E:$E,MATCH(Plaza_SpawnPoint!C18,NO_참조테이블!$F:$F,0))","v":109},0]
["DEV",15,"그리너리 시티 빌리지",{"$f":"INDEX(NO_참조테이블!$E:$E,MATCH(Plaza_SpawnPoint!C19,NO_참조테이블!$F:$F,0))","v":109},0]
["DEV",16,"그리너리 시티 빌리지",{"$f":"INDEX(NO_참조테이블!$E:$E,MATCH(Plaza_SpawnPoint!C20,NO_참조테이블!$F:$F,0))","v":109},1]
["DEV",17,"그리너리 시티 빌리지",{"$f":"INDEX(NO_참조테이블!$E:$E,MATCH(Plaza_SpawnPoint!C21,NO_참조테이블!$F:$F,0))","v":109},1]
["DEV",18,"그리너리 시티 빌리지",{"$f":"INDEX(NO_참조테이블!$E:$E,MATCH(Plaza_SpawnPoint!C22,NO_참조테이블!$F:$F,0))","v":109},1]
["DEV",19,"그리너리 시티 빌리지",{"$f":"INDEX(NO_참조테이블!$E:$E,MATCH(Plaza_SpawnPoint!C23,NO_참조테이블!$F:$F,0))","v":109},1]
["DEV",20,"그리너리 시티 빌리지",{"$f":"INDEX(NO_참조테이블!$E:$E,MATCH(Plaza_SpawnPoint!C24,NO_참조테이블!$F:$F,0))","v":109},1]
["DEV",21,"그리너리 시티 빌리지",{"$f":"INDEX(NO_참조테이블!$E:$E,MATCH(Plaza_SpawnPoint!C25,NO_참조테이블!$F:$F,0))","v":109},0]
["DEV",22,"그리너리 시티 빌리지",{"$f":"INDEX(NO_참조테이블!$E:$E,MATCH(Plaza_SpawnPoint!C26,NO_참조테이블!$F:$F,0))","v":109},0]
["DEV",23,"그리너리 시티 빌리지",{"$f":"INDEX(NO_참조테이블!$E:$E,MATCH(Plaza_SpawnPoint!C27,NO_참조테이블!$F:$F,0))","v":109},0]
["DEV",24,"그리너리 시티 빌리지",{"$f":"INDEX(NO_참조테이블!$E:$E,MATCH(Plaza_SpawnPoint!C28,NO_참조테이블!$F:$F,0))","v":109},0]
["DEV",25,"그리너리 시티 빌리지",{"$f":"INDEX(NO_참조테이블!$E:$E,MATCH(Plaza_SpawnPoint!C29,NO_참조테이블!$F:$F,0))","v":109},0]
["DEV",26,"그리너리 시티 빌리지",{"$f":"INDEX(NO_참조테이블!$E:$E,MATCH(Plaza_SpawnPoint!C30,NO_참조테이블!$F:$F,0))","v":109},0]
["DEV",27,"그리너리 시티 빌리지",{"$f":"INDEX(NO_참조테이블!$E:$E,MATCH(Plaza_SpawnPoint!C31,NO_참조테이블!$F:$F,0))","v":109},0]
["DEV",28,"그리너리 시티 빌리지",{"$f":"INDEX(NO_참조테이블!$E:$E,MATCH(Plaza_SpawnPoint!C32,NO_참조테이블!$F:$F,0))","v":109},1]
["DEV",29,"그리너리 시티 빌리지",{"$f":"INDEX(NO_참조테이블!$E:$E,MATCH(Plaza_SpawnPoint!C33,NO_참조테이블!$F:$F,0))","v":109},1]
["DEV",30,"그리너리 시티 빌리지",{"$f":"INDEX(NO_참조테이블!$E:$E,MATCH(Plaza_SpawnPoint!C34,NO_참조테이블!$F:$F,0))","v":109},1]
["DEV",31,"그리너리 시티 빌리지",{"$f":"INDEX(NO_참조테이블!$E:$E,MATCH(Plaza_SpawnPoint!C35,NO_참조테이블!$F:$F,0))","v":109},1]
["DEV",32,"그리너리 시티 빌리지",{"$f":"INDEX(NO_참조테이블!$E:$E,MATCH(Plaza_SpawnPoint!C36,NO_참조테이블!$F:$F,0))","v":109},1]
["DEV",33,"그리너리 시티 빌리지",{"$f":"INDEX(NO_참조테이블!$E:$E,MATCH(Plaza_SpawnPoint!C37,NO_참조테이블!$F:$F,0))","v":109},1]
["DEV",34,"그리너리 시티 빌리지",{"$f":"INDEX(NO_참조테이블!$E:$E,MATCH(Plaza_SpawnPoint!C38,NO_참조테이블!$F:$F,0))","v":109},1]
["DEV",35,"퀸즈 팰리스 시티 빌리지",{"$f":"INDEX(NO_참조테이블!$E:$E,MATCH(Plaza_SpawnPoint!C39,NO_참조테이블!$F:$F,0))","v":112},0]
["DEV",36,"퀸즈 팰리스 시티 빌리지",{"$f":"INDEX(NO_참조테이블!$E:$E,MATCH(Plaza_SpawnPoint!C40,NO_참조테이블!$F:$F,0))","v":112},0]
["DEV",37,"퀸즈 팰리스 시티 빌리지",{"$f":"INDEX(NO_참조테이블!$E:$E,MATCH(Plaza_SpawnPoint!C41,NO_참조테이블!$F:$F,0))","v":112},0]
["DEV",38,"퀸즈 팰리스 시티 빌리지",{"$f":"INDEX(NO_참조테이블!$E:$E,MATCH(Plaza_SpawnPoint!C42,NO_참조테이블!$F:$F,0))","v":112},0]
["DEV",39,"퀸즈 팰리스 시티 빌리지",{"$f":"INDEX(NO_참조테이블!$E:$E,MATCH(Plaza_SpawnPoint!C43,NO_참조테이블!$F:$F,0))","v":112},0]
["DEV",40,"퀸즈 팰리스 시티 빌리지",{"$f":"INDEX(NO_참조테이블!$E:$E,MATCH(Plaza_SpawnPoint!C44,NO_참조테이블!$F:$F,0))","v":112},0]
["DEV",41,"퀸즈 팰리스 시티 빌리지",{"$f":"INDEX(NO_참조테이블!$E:$E,MATCH(Plaza_SpawnPoint!C45,NO_참조테이블!$F:$F,0))","v":112},1]
["DEV",42,"퀸즈 팰리스 시티 빌리지",{"$f":"INDEX(NO_참조테이블!$E:$E,MATCH(Plaza_SpawnPoint!C46,NO_참조테이블!$F:$F,0))","v":112},1]
["DEV",43,"퀸즈 팰리스 시티 빌리지",{"$f":"INDEX(NO_참조테이블!$E:$E,MATCH(Plaza_SpawnPoint!C47,NO_참조테이블!$F:$F,0))","v":112},1]
["DEV",44,"퀸즈 팰리스 시티 빌리지",{"$f":"INDEX(NO_참조테이블!$E:$E,MATCH(Plaza_SpawnPoint!C48,NO_참조테이블!$F:$F,0))","v":112},1]
["DEV",45,"퀸즈 팰리스 시티 빌리지",{"$f":"INDEX(NO_참조테이블!$E:$E,MATCH(Plaza_SpawnPoint!C49,NO_참조테이블!$F:$F,0))","v":112},1]
["DEV",46,"퀸즈 팰리스 시티 빌리지",{"$f":"INDEX(NO_참조테이블!$E:$E,MATCH(Plaza_SpawnPoint!C50,NO_참조테이블!$F:$F,0))","v":112},0]
["DEV",47,"퀸즈 팰리스 시티 빌리지",{"$f":"INDEX(NO_참조테이블!$E:$E,MATCH(Plaza_SpawnPoint!C51,NO_참조테이블!$F:$F,0))","v":112},0]
["DEV",48,"퀸즈 팰리스 시티 빌리지",{"$f":"INDEX(NO_참조테이블!$E:$E,MATCH(Plaza_SpawnPoint!C52,NO_참조테이블!$F:$F,0))","v":112},0]
["DEV",49,"퀸즈 팰리스 시티 빌리지",{"$f":"INDEX(NO_참조테이블!$E:$E,MATCH(Plaza_SpawnPoint!C53,NO_참조테이블!$F:$F,0))","v":112},0]
["DEV",50,"퀸즈 팰리스 시티 빌리지",{"$f":"INDEX(NO_참조테이블!$E:$E,MATCH(Plaza_SpawnPoint!C54,NO_참조테이블!$F:$F,0))","v":112},0]
["DEV",51,"퀸즈 팰리스 시티 빌리지",{"$f":"INDEX(NO_참조테이블!$E:$E,MATCH(Plaza_SpawnPoint!C55,NO_참조테이블!$F:$F,0))","v":112},0]
["DEV",52,"퀸즈 팰리스 시티 빌리지",{"$f":"INDEX(NO_참조테이블!$E:$E,MATCH(Plaza_SpawnPoint!C56,NO_참조테이블!$F:$F,0))","v":112},0]
["DEV",53,"퀸즈 팰리스 시티 빌리지",{"$f":"INDEX(NO_참조테이블!$E:$E,MATCH(Plaza_SpawnPoint!C57,NO_참조테이블!$F:$F,0))","v":112},1]
["DEV",54,"퀸즈 팰리스 시티 빌리지",{"$f":"INDEX(NO_참조테이블!$E:$E,MATCH(Plaza_SpawnPoint!C58,NO_참조테이블!$F:$F,0))","v":112},1]
["DEV",55,"퀸즈 팰리스 시티 빌리지",{"$f":"INDEX(NO_참조테이블!$E:$E,MATCH(Plaza_SpawnPoint!C59,NO_참조테이블!$F:$F,0))","v":112},1]
["DEV",56,"퀸즈 팰리스 시티 빌리지",{"$f":"INDEX(NO_참조테이블!$E:$E,MATCH(Plaza_SpawnPoint!C60,NO_참조테이블!$F:$F,0))","v":112},1]
["DEV",57,"퀸즈 팰리스 시티 빌리지",{"$f":"INDEX(NO_참조테이블!$E:$E,MATCH(Plaza_SpawnPoint!C61,NO_참조테이블!$F:$F,0))","v":112},1]
["DEV",58,"퀸즈 팰리스 시티 빌리지",{"$f":"INDEX(NO_참조테이블!$E:$E,MATCH(Plaza_SpawnPoint!C62,NO_참조테이블!$F:$F,0))","v":112},1]
["DEV",59,"퀸즈 팰리스 시티 빌리지",{"$f":"INDEX(NO_참조테이블!$E:$E,MATCH(Plaza_SpawnPoint!C63,NO_참조테이블!$F:$F,0))","v":112},1]
["DEV",60,"트로피칼 선 시티 빌리지",{"$f":"INDEX(NO_참조테이블!$E:$E,MATCH(Plaza_SpawnPoint!C64,NO_참조테이블!$F:$F,0))","v":111},0]
["DEV",61,"트로피칼 선 시티 빌리지",{"$f":"INDEX(NO_참조테이블!$E:$E,MATCH(Plaza_SpawnPoint!C65,NO_참조테이블!$F:$F,0))","v":111},0]
["DEV",62,"트로피칼 선 시티 빌리지",{"$f":"INDEX(NO_참조테이블!$E:$E,MATCH(Plaza_SpawnPoint!C66,NO_참조테이블!$F:$F,0))","v":111},0]
["DEV",63,"트로피칼 선 시티 빌리지",{"$f":"INDEX(NO_참조테이블!$E:$E,MATCH(Plaza_SpawnPoint!C67,NO_참조테이블!$F:$F,0))","v":111},0]
["DEV",64,"트로피칼 선 시티 빌리지",{"$f":"INDEX(NO_참조테이블!$E:$E,MATCH(Plaza_SpawnPoint!C68,NO_참조테이블!$F:$F,0))","v":111},0]
["DEV",65,"트로피칼 선 시티 빌리지",{"$f":"INDEX(NO_참조테이블!$E:$E,MATCH(Plaza_SpawnPoint!C69,NO_참조테이블!$F:$F,0))","v":111},0]
["DEV",66,"트로피칼 선 시티 빌리지",{"$f":"INDEX(NO_참조테이블!$E:$E,MATCH(Plaza_SpawnPoint!C70,NO_참조테이블!$F:$F,0))","v":111},1]
["DEV",67,"트로피칼 선 시티 빌리지",{"$f":"INDEX(NO_참조테이블!$E:$E,MATCH(Plaza_SpawnPoint!C71,NO_참조테이블!$F:$F,0))","v":111},1]
["DEV",68,"트로피칼 선 시티 빌리지",{"$f":"INDEX(NO_참조테이블!$E:$E,MATCH(Plaza_SpawnPoint!C72,NO_참조테이블!$F:$F,0))","v":111},1]
["DEV",69,"트로피칼 선 시티 빌리지",{"$f":"INDEX(NO_참조테이블!$E:$E,MATCH(Plaza_SpawnPoint!C73,NO_참조테이블!$F:$F,0))","v":111},1]
["DEV",70,"트로피칼 선 시티 빌리지",{"$f":"INDEX(NO_참조테이블!$E:$E,MATCH(Plaza_SpawnPoint!C74,NO_참조테이블!$F:$F,0))","v":111},1]
["DEV",71,"트로피칼 선 시티 빌리지",{"$f":"INDEX(NO_참조테이블!$E:$E,MATCH(Plaza_SpawnPoint!C75,NO_참조테이블!$F:$F,0))","v":111},0]
["DEV",72,"트로피칼 선 시티 빌리지",{"$f":"INDEX(NO_참조테이블!$E:$E,MATCH(Plaza_SpawnPoint!C76,NO_참조테이블!$F:$F,0))","v":111},0]
["DEV",73,"트로피칼 선 시티 빌리지",{"$f":"INDEX(NO_참조테이블!$E:$E,MATCH(Plaza_SpawnPoint!C77,NO_참조테이블!$F:$F,0))","v":111},0]
["DEV",74,"트로피칼 선 시티 빌리지",{"$f":"INDEX(NO_참조테이블!$E:$E,MATCH(Plaza_SpawnPoint!C78,NO_참조테이블!$F:$F,0))","v":111},0]
["DEV",75,"트로피칼 선 시티 빌리지",{"$f":"INDEX(NO_참조테이블!$E:$E,MATCH(Plaza_SpawnPoint!C79,NO_참조테이블!$F:$F,0))","v":111},0]
["DEV",76,"트로피칼 선 시티 빌리지",{"$f":"INDEX(NO_참조테이블!$E:$E,MATCH(Plaza_SpawnPoint!C80,NO_참조테이블!$F:$F,0))","v":111},0]
["DEV",77,"트로피칼 선 시티 빌리지",{"$f":"INDEX(NO_참조테이블!$E:$E,MATCH(Plaza_SpawnPoint!C81,NO_참조테이블!$F:$F,0))","v":111},0]
["DEV",78,"트로피칼 선 시티 빌리지",{"$f":"INDEX(NO_참조테이블!$E:$E,MATCH(Plaza_SpawnPoint!C82,NO_참조테이블!$F:$F,0))","v":111},1]
["DEV",79,"트로피칼 선 시티 빌리지",{"$f":"INDEX(NO_참조테이블!$E:$E,MATCH(Plaza_SpawnPoint!C83,NO_참조테이블!$F:$F,0))","v":111},1]
["DEV",80,"트로피칼 선 시티 빌리지",{"$f":"INDEX(NO_참조테이블!$E:$E,MATCH(Plaza_SpawnPoint!C84,NO_참조테이블!$F:$F,0))","v":111},1]
["DEV",81,"트로피칼 선 시티 빌리지",{"$f":"INDEX(NO_참조테이블!$E:$E,MATCH(Plaza_SpawnPoint!C85,NO_참조테이블!$F:$F,0))","v":111},1]
["DEV",82,"트로피칼 선 시티 빌리지",{"$f":"INDEX(NO_참조테이블!$E:$E,MATCH(Plaza_SpawnPoint!C86,NO_참조테이블!$F:$F,0))","v":111},1]
["DEV",83,"트로피칼 선 시티 빌리지",{"$f":"INDEX(NO_참조테이블!$E:$E,MATCH(Plaza_SpawnPoint!C87,NO_참조테이블!$F:$F,0))","v":111},1]
["DEV",84,"트로피칼 선 시티 빌리지",{"$f":"INDEX(NO_참조테이블!$E:$E,MATCH(Plaza_SpawnPoint!C88,NO_참조테이블!$F:$F,0))","v":111},1]
["DEV",85,"어반뷰 시티 빌리지",{"$f":"INDEX(NO_참조테이블!$E:$E,MATCH(Plaza_SpawnPoint!C89,NO_참조테이블!$F:$F,0))","v":110},0]
["DEV",86,"어반뷰 시티 빌리지",{"$f":"INDEX(NO_참조테이블!$E:$E,MATCH(Plaza_SpawnPoint!C90,NO_참조테이블!$F:$F,0))","v":110},0]
["DEV",87,"어반뷰 시티 빌리지",{"$f":"INDEX(NO_참조테이블!$E:$E,MATCH(Plaza_SpawnPoint!C91,NO_참조테이블!$F:$F,0))","v":110},0]
["DEV",88,"어반뷰 시티 빌리지",{"$f":"INDEX(NO_참조테이블!$E:$E,MATCH(Plaza_SpawnPoint!C92,NO_참조테이블!$F:$F,0))","v":110},0]
["DEV",89,"어반뷰 시티 빌리지",{"$f":"INDEX(NO_참조테이블!$E:$E,MATCH(Plaza_SpawnPoint!C93,NO_참조테이블!$F:$F,0))","v":110},0]
["DEV",90,"어반뷰 시티 빌리지",{"$f":"INDEX(NO_참조테이블!$E:$E,MATCH(Plaza_SpawnPoint!C94,NO_참조테이블!$F:$F,0))","v":110},0]
["DEV",91,"어반뷰 시티 빌리지",{"$f":"INDEX(NO_참조테이블!$E:$E,MATCH(Plaza_SpawnPoint!C95,NO_참조테이블!$F:$F,0))","v":110},1]
["DEV",92,"어반뷰 시티 빌리지",{"$f":"INDEX(NO_참조테이블!$E:$E,MATCH(Plaza_SpawnPoint!C96,NO_참조테이블!$F:$F,0))","v":110},1]
["DEV",93,"어반뷰 시티 빌리지",{"$f":"INDEX(NO_참조테이블!$E:$E,MATCH(Plaza_SpawnPoint!C97,NO_참조테이블!$F:$F,0))","v":110},1]
["DEV",94,"어반뷰 시티 빌리지",{"$f":"INDEX(NO_참조테이블!$E:$E,MATCH(Plaza_SpawnPoint!C98,NO_참조테이블!$F:$F,0))","v":110},1]
["DEV",95,"어반뷰 시티 빌리지",{"$f":"INDEX(NO_참조테이블!$E:$E,MATCH(Plaza_SpawnPoint!C99,NO_참조테이블!$F:$F,0))","v":110},1]
["DEV",96,"어반뷰 시티 빌리지",{"$f":"INDEX(NO_참조테이블!$E:$E,MATCH(Plaza_SpawnPoint!C100,NO_참조테이블!$F:$F,0))","v":110},0]
["DEV",97,"어반뷰 시티 빌리지",{"$f":"INDEX(NO_참조테이블!$E:$E,MATCH(Plaza_SpawnPoint!C101,NO_참조테이블!$F:$F,0))","v":110},0]
["DEV",98,"어반뷰 시티 빌리지",{"$f":"INDEX(NO_참조테이블!$E:$E,MATCH(Plaza_SpawnPoint!C102,NO_참조테이블!$F:$F,0))","v":110},0]
["DEV",99,"어반뷰 시티 빌리지",{"$f":"INDEX(NO_참조테이블!$E:$E,MATCH(Plaza_SpawnPoint!C103,NO_참조테이블!$F:$F,0))","v":110},0]
["DEV",100,"어반뷰 시티 빌리지",{"$f":"INDEX(NO_참조테이블!$E:$E,MATCH(Plaza_SpawnPoint!C104,NO_참조테이블!$F:$F,0))","v":110},0]
["DEV",101,"어반뷰 시티 빌리지",{"$f":"INDEX(NO_참조테이블!$E:$E,MATCH(Plaza_SpawnPoint!C105,NO_참조테이블!$F:$F,0))","v":110},0]
["DEV",102,"어반뷰 시티 빌리지",{"$f":"INDEX(NO_참조테이블!$E:$E,MATCH(Plaza_SpawnPoint!C106,NO_참조테이블!$F:$F,0))","v":110},0]
["DEV",103,"어반뷰 시티 빌리지",{"$f":"INDEX(NO_참조테이블!$E:$E,MATCH(Plaza_SpawnPoint!C107,NO_참조테이블!$F:$F,0))","v":110},1]
["DEV",104,"어반뷰 시티 빌리지",{"$f":"INDEX(NO_참조테이블!$E:$E,MATCH(Plaza_SpawnPoint!C108,NO_참조테이블!$F:$F,0))","v":110},1]
["DEV",105,"어반뷰 시티 빌리지",{"$f":"INDEX(NO_참조테이블!$E:$E,MATCH(Plaza_SpawnPoint!C109,NO_참조테이블!$F:$F,0))","v":110},1]
["DEV",106,"어반뷰 시티 빌리지",{"$f":"INDEX(NO_참조테이블!$E:$E,MATCH(Plaza_SpawnPoint!C110,NO_참조테이블!$F:$F,0))","v":110},1]
["DEV",107,"어반뷰 시티 빌리지",{"$f":"INDEX(NO_참조테이블!$E:$E,MATCH(Plaza_SpawnPoint!C111,NO_참조테이블!$F:$F,0))","v":110},1]
["DEV",108,"어반뷰 시티 빌리지",{"$f":"INDEX(NO_참조테이블!$E:$E,MATCH(Plaza_SpawnPoint!C112,NO_참조테이블!$F:$F,0))","v":110},1]
["DEV",109,"어반뷰 시티 빌리지",{"$f":"INDEX(NO_참조테이블!$E:$E,MATCH(Plaza_SpawnPoint!C113,NO_참조테이블!$F:$F,0))","v":110},1]
["DEV",110,"센트럴 타운",{"$f":"INDEX(NO_참조테이블!$E:$E,MATCH(Plaza_SpawnPoint!C114,NO_참조테이블!$F:$F,0))","v":105},1]
["DEV",111,"센트럴 타운",{"$f":"INDEX(NO_참조테이블!$E:$E,MATCH(Plaza_SpawnPoint!C115,NO_참조테이블!$F:$F,0))","v":105},1]
["DEV",112,"센트럴 타운",{"$f":"INDEX(NO_참조테이블!$E:$E,MATCH(Plaza_SpawnPoint!C116,NO_참조테이블!$F:$F,0))","v":105},0]
["DEV",113,"센트럴 타운",{"$f":"INDEX(NO_참조테이블!$E:$E,MATCH(Plaza_SpawnPoint!C117,NO_참조테이블!$F:$F,0))","v":105},0]
["DEV",114,"센트럴 타운",{"$f":"INDEX(NO_참조테이블!$E:$E,MATCH(Plaza_SpawnPoint!C118,NO_참조테이블!$F:$F,0))","v":105},0]
["DEV",115,"센트럴 타운",{"$f":"INDEX(NO_참조테이블!$E:$E,MATCH(Plaza_SpawnPoint!C119,NO_참조테이블!$F:$F,0))","v":105},0]
["DEV",116,"센트럴 타운",{"$f":"INDEX(NO_참조테이블!$E:$E,MATCH(Plaza_SpawnPoint!C120,NO_참조테이블!$F:$F,0))","v":105},0]
["DEV",117,"센트럴 타운",{"$f":"INDEX(NO_참조테이블!$E:$E,MATCH(Plaza_SpawnPoint!C121,NO_참조테이블!$F:$F,0))","v":105},0]
["DEV",118,"센트럴 타운",{"$f":"INDEX(NO_참조테이블!$E:$E,MATCH(Plaza_SpawnPoint!C122,NO_참조테이블!$F:$F,0))","v":105},0]
["DEV",119,"센트럴 타운",{"$f":"INDEX(NO_참조테이블!$E:$E,MATCH(Plaza_SpawnPoint!C123,NO_참조테이블!$F:$F,0))","v":105},1]
["DEV",120,"센트럴 타운",{"$f":"INDEX(NO_참조테이블!$E:$E,MATCH(Plaza_SpawnPoint!C124,NO_참조테이블!$F:$F,0))","v":105},1]
["DEV",121,"센트럴 타운",{"$f":"INDEX(NO_참조테이블!$E:$E,MATCH(Plaza_SpawnPoint!C125,NO_참조테이블!$F:$F,0))","v":105},1]
["DEV",122,"센트럴 타운",{"$f":"INDEX(NO_참조테이블!$E:$E,MATCH(Plaza_SpawnPoint!C126,NO_참조테이블!$F:$F,0))","v":105},1]
["DEV",123,"센트럴 타운",{"$f":"INDEX(NO_참조테이블!$E:$E,MATCH(Plaza_SpawnPoint!C127,NO_참조테이블!$F:$F,0))","v":105},1]
["DEV",124,"센트럴 타운",{"$f":"INDEX(NO_참조테이블!$E:$E,MATCH(Plaza_SpawnPoint!C128,NO_참조테이블!$F:$F,0))","v":105},1]
["DEV",125,"센트럴 타운",{"$f":"INDEX(NO_참조테이블!$E:$E,MATCH(Plaza_SpawnPoint!C129,NO_참조테이블!$F:$F,0))","v":105},1]
["DEV",126,"센트럴 타운",{"$f":"INDEX(NO_참조테이블!$E:$E,MATCH(Plaza_SpawnPoint!C130,NO_참조테이블!$F:$F,0))","v":105},0]
["DEV",127,"패션 스트릿",{"$f":"INDEX(NO_참조테이블!$E:$E,MATCH(Plaza_SpawnPoint!C131,NO_참조테이블!$F:$F,0))","v":108},0]
["DEV",128,"그리너리 시티 빌리지",{"$f":"INDEX(NO_참조테이블!$E:$E,MATCH(Plaza_SpawnPoint!C132,NO_참조테이블!$F:$F,0))","v":109},0]
["DEV",129,"퀸즈 팰리스 시티 빌리지",{"$f":"INDEX(NO_참조테이블!$E:$E,MATCH(Plaza_SpawnPoint!C133,NO_참조테이블!$F:$F,0))","v":112},0]
["DEV",130,"트로피칼 선 시티 빌리지",{"$f":"INDEX(NO_참조테이블!$E:$E,MATCH(Plaza_SpawnPoint!C134,NO_참조테이블!$F:$F,0))","v":111},0]
["DEV",131,"어반뷰 시티 빌리지",{"$f":"INDEX(NO_참조테이블!$E:$E,MATCH(Plaza_SpawnPoint!C135,NO_참조테이블!$F:$F,0))","v":110},0]
["DEV",141,"그리너리 시티 빌리지",{"$f":"INDEX(NO_참조테이블!$E:$E,MATCH(Plaza_SpawnPoint!C136,NO_참조테이블!$F:$F,0))","v":109},0]
["DEV",142,"그리너리 시티 빌리지",{"$f":"INDEX(NO_참조테이블!$E:$E,MATCH(Plaza_SpawnPoint!C137,NO_참조테이블!$F:$F,0))","v":109},0]
["DEV",143,"그리너리 시티 빌리지",{"$f":"INDEX(NO_참조테이블!$E:$E,MATCH(Plaza_SpawnPoint!C138,NO_참조테이블!$F:$F,0))","v":109},0]
["DEV",144,"그리너리 시티 빌리지",{"$f":"INDEX(NO_참조테이블!$E:$E,MATCH(Plaza_SpawnPoint!C139,NO_참조테이블!$F:$F,0))","v":109},0]
["DEV",145,"그리너리 시티 빌리지",{"$f":"INDEX(NO_참조테이블!$E:$E,MATCH(Plaza_SpawnPoint!C140,NO_참조테이블!$F:$F,0))","v":109},0]
["DEV",146,"그리너리 시티 빌리지",{"$f":"INDEX(NO_참조테이블!$E:$E,MATCH(Plaza_SpawnPoint!C141,NO_참조테이블!$F:$F,0))","v":109},0]
["DEV",147,"그리너리 시티 빌리지",{"$f":"INDEX(NO_참조테이블!$E:$E,MATCH(Plaza_SpawnPoint!C142,NO_참조테이블!$F:$F,0))","v":109},1]
["DEV",148,"그리너리 시티 빌리지",{"$f":"INDEX(NO_참조테이블!$E:$E,MATCH(Plaza_SpawnPoint!C143,NO_참조테이블!$F:$F,0))","v":109},1]
["DEV",149,"그리너리 시티 빌리지",{"$f":"INDEX(NO_참조테이블!$E:$E,MATCH(Plaza_SpawnPoint!C144,NO_참조테이블!$F:$F,0))","v":109},1]
["DEV",150,"그리너리 시티 빌리지",{"$f":"INDEX(NO_참조테이블!$E:$E,MATCH(Plaza_SpawnPoint!C145,NO_참조테이블!$F:$F,0))","v":109},1]
["DEV",151,"그리너리 시티 빌리지",{"$f":"INDEX(NO_참조테이블!$E:$E,MATCH(Plaza_SpawnPoint!C146,NO_참조테이블!$F:$F,0))","v":109},1]
["DEV",152,"그리너리 시티 빌리지",{"$f":"INDEX(NO_참조테이블!$E:$E,MATCH(Plaza_SpawnPoint!C147,NO_참조테이블!$F:$F,0))","v":109},0]
["DEV",153,"그리너리 시티 빌리지",{"$f":"INDEX(NO_참조테이블!$E:$E,MATCH(Plaza_SpawnPoint!C148,NO_참조테이블!$F:$F,0))","v":109},0]
["DEV",154,"그리너리 시티 빌리지",{"$f":"INDEX(NO_참조테이블!$E:$E,MATCH(Plaza_SpawnPoint!C149,NO_참조테이블!$F:$F,0))","v":109},0]
["DEV",155,"그리너리 시티 빌리지",{"$f":"INDEX(NO_참조테이블!$E:$E,MATCH(Plaza_SpawnPoint!C150,NO_참조테이블!$F:$F,0))","v":109},0]
["DEV",156,"그리너리 시티 빌리지",{"$f":"INDEX(NO_참조테이블!$E:$E,MATCH(Plaza_SpawnPoint!C151,NO_참조테이블!$F:$F,0))","v":109},0]
["DEV",157,"그리너리 시티 빌리지",{"$f":"INDEX(NO_참조테이블!$E:$E,MATCH(Plaza_SpawnPoint!C152,NO_참조테이블!$F:$F,0))","v":109},0]
["DEV",158,"그리너리 시티 빌리지",{"$f":"INDEX(NO_참조테이블!$E:$E,MATCH(Plaza_SpawnPoint!C153,NO_참조테이블!$F:$F,0))","v":109},0]
["DEV",159,"그리너리 시티 빌리지",{"$f":"INDEX(NO_참조테이블!$E:$E,MATCH(Plaza_SpawnPoint!C154,NO_참조테이블!$F:$F,0))","v":109},1]
["DEV",160,"그리너리 시티 빌리지",{"$f":"INDEX(NO_참조테이블!$E:$E,MATCH(Plaza_SpawnPoint!C155,NO_참조테이블!$F:$F,0))","v":109},1]
["DEV",161,"그리너리 시티 빌리지",{"$f":"INDEX(NO_참조테이블!$E:$E,MATCH(Plaza_SpawnPoint!C156,NO_참조테이블!$F:$F,0))","v":109},1]
["DEV",162,"그리너리 시티 빌리지",{"$f":"INDEX(NO_참조테이블!$E:$E,MATCH(Plaza_SpawnPoint!C157,NO_참조테이블!$F:$F,0))","v":109},1]
["DEV",163,"그리너리 시티 빌리지",{"$f":"INDEX(NO_참조테이블!$E:$E,MATCH(Plaza_SpawnPoint!C158,NO_참조테이블!$F:$F,0))","v":109},1]
["DEV",164,"그리너리 시티 빌리지",{"$f":"INDEX(NO_참조테이블!$E:$E,MATCH(Plaza_SpawnPoint!C159,NO_참조테이블!$F:$F,0))","v":109},1]
["DEV",165,"그리너리 시티 빌리지",{"$f":"INDEX(NO_참조테이블!$E:$E,MATCH(Plaza_SpawnPoint!C160,NO_참조테이블!$F:$F,0))","v":109},1]
["DEV",166,"퀸즈 팰리스 시티 빌리지",{"$f":"INDEX(NO_참조테이블!$E:$E,MATCH(Plaza_SpawnPoint!C161,NO_참조테이블!$F:$F,0))","v":112},0]
["DEV",167,"퀸즈 팰리스 시티 빌리지",{"$f":"INDEX(NO_참조테이블!$E:$E,MATCH(Plaza_SpawnPoint!C162,NO_참조테이블!$F:$F,0))","v":112},0]
["DEV",168,"퀸즈 팰리스 시티 빌리지",{"$f":"INDEX(NO_참조테이블!$E:$E,MATCH(Plaza_SpawnPoint!C163,NO_참조테이블!$F:$F,0))","v":112},0]
["DEV",169,"퀸즈 팰리스 시티 빌리지",{"$f":"INDEX(NO_참조테이블!$E:$E,MATCH(Plaza_SpawnPoint!C164,NO_참조테이블!$F:$F,0))","v":112},0]
["DEV",170,"퀸즈 팰리스 시티 빌리지",{"$f":"INDEX(NO_참조테이블!$E:$E,MATCH(Plaza_SpawnPoint!C165,NO_참조테이블!$F:$F,0))","v":112},0]
["DEV",171,"퀸즈 팰리스 시티 빌리지",{"$f":"INDEX(NO_참조테이블!$E:$E,MATCH(Plaza_SpawnPoint!C166,NO_참조테이블!$F:$F,0))","v":112},0]
["DEV",172,"퀸즈 팰리스 시티 빌리지",{"$f":"INDEX(NO_참조테이블!$E:$E,MATCH(Plaza_SpawnPoint!C167,NO_참조테이블!$F:$F,0))","v":112},1]
["DEV",173,"퀸즈 팰리스 시티 빌리지",{"$f":"INDEX(NO_참조테이블!$E:$E,MATCH(Plaza_SpawnPoint!C168,NO_참조테이블!$F:$F,0))","v":112},1]
["DEV",174,"퀸즈 팰리스 시티 빌리지",{"$f":"INDEX(NO_참조테이블!$E:$E,MATCH(Plaza_SpawnPoint!C169,NO_참조테이블!$F:$F,0))","v":112},1]
["DEV",175,"퀸즈 팰리스 시티 빌리지",{"$f":"INDEX(NO_참조테이블!$E:$E,MATCH(Plaza_SpawnPoint!C170,NO_참조테이블!$F:$F,0))","v":112},1]
["DEV",176,"퀸즈 팰리스 시티 빌리지",{"$f":"INDEX(NO_참조테이블!$E:$E,MATCH(Plaza_SpawnPoint!C171,NO_참조테이블!$F:$F,0))","v":112},1]
["DEV",177,"퀸즈 팰리스 시티 빌리지",{"$f":"INDEX(NO_참조테이블!$E:$E,MATCH(Plaza_SpawnPoint!C172,NO_참조테이블!$F:$F,0))","v":112},0]
["DEV",178,"퀸즈 팰리스 시티 빌리지",{"$f":"INDEX(NO_참조테이블!$E:$E,MATCH(Plaza_SpawnPoint!C173,NO_참조테이블!$F:$F,0))","v":112},0]
["DEV",179,"퀸즈 팰리스 시티 빌리지",{"$f":"INDEX(NO_참조테이블!$E:$E,MATCH(Plaza_SpawnPoint!C174,NO_참조테이블!$F:$F,0))","v":112},0]
["DEV",180,"퀸즈 팰리스 시티 빌리지",{"$f":"INDEX(NO_참조테이블!$E:$E,MATCH(Plaza_SpawnPoint!C175,NO_참조테이블!$F:$F,0))","v":112},0]
["DEV",181,"퀸즈 팰리스 시티 빌리지",{"$f":"INDEX(NO_참조테이블!$E:$E,MATCH(Plaza_SpawnPoint!C176,NO_참조테이블!$F:$F,0))","v":112},0]
["DEV",182,"퀸즈 팰리스 시티 빌리지",{"$f":"INDEX(NO_참조테이블!$E:$E,MATCH(Plaza_SpawnPoint!C177,NO_참조테이블!$F:$F,0))","v":112},0]
["DEV",183,"퀸즈 팰리스 시티 빌리지",{"$f":"INDEX(NO_참조테이블!$E:$E,MATCH(Plaza_SpawnPoint!C178,NO_참조테이블!$F:$F,0))","v":112},0]
["DEV",184,"퀸즈 팰리스 시티 빌리지",{"$f":"INDEX(NO_참조테이블!$E:$E,MATCH(Plaza_SpawnPoint!C179,NO_참조테이블!$F:$F,0))","v":112},1]
["DEV",185,"퀸즈 팰리스 시티 빌리지",{"$f":"INDEX(NO_참조테이블!$E:$E,MATCH(Plaza_SpawnPoint!C180,NO_참조테이블!$F:$F,0))","v":112},1]
["DEV",186,"퀸즈 팰리스 시티 빌리지",{"$f":"INDEX(NO_참조테이블!$E:$E,MATCH(Plaza_SpawnPoint!C181,NO_참조테이블!$F:$F,0))","v":112},1]
["DEV",187,"퀸즈 팰리스 시티 빌리지",{"$f":"INDEX(NO_참조테이블!$E:$E,MATCH(Plaza_SpawnPoint!C182,NO_참조테이블!$F:$F,0))","v":112},1]
["DEV",188,"퀸즈 팰리스 시티 빌리지",{"$f":"INDEX(NO_참조테이블!$E:$E,MATCH(Plaza_SpawnPoint!C183,NO_참조테이블!$F:$F,0))","v":112},1]
["DEV",189,"퀸즈 팰리스 시티 빌리지",{"$f":"INDEX(NO_참조테이블!$E:$E,MATCH(Plaza_SpawnPoint!C184,NO_참조테이블!$F:$F,0))","v":112},1]
["DEV",190,"퀸즈 팰리스 시티 빌리지",{"$f":"INDEX(NO_참조테이블!$E:$E,MATCH(Plaza_SpawnPoint!C185,NO_참조테이블!$F:$F,0))","v":112},1]
["DEV",191,"트로피칼 선 시티 빌리지",{"$f":"INDEX(NO_참조테이블!$E:$E,MATCH(Plaza_SpawnPoint!C186,NO_참조테이블!$F:$F,0))","v":111},0]
["DEV",192,"트로피칼 선 시티 빌리지",{"$f":"INDEX(NO_참조테이블!$E:$E,MATCH(Plaza_SpawnPoint!C187,NO_참조테이블!$F:$F,0))","v":111},0]
["DEV",193,"트로피칼 선 시티 빌리지",{"$f":"INDEX(NO_참조테이블!$E:$E,MATCH(Plaza_SpawnPoint!C188,NO_참조테이블!$F:$F,0))","v":111},0]
["DEV",194,"트로피칼 선 시티 빌리지",{"$f":"INDEX(NO_참조테이블!$E:$E,MATCH(Plaza_SpawnPoint!C189,NO_참조테이블!$F:$F,0))","v":111},0]
["DEV",195,"트로피칼 선 시티 빌리지",{"$f":"INDEX(NO_참조테이블!$E:$E,MATCH(Plaza_SpawnPoint!C190,NO_참조테이블!$F:$F,0))","v":111},0]
["DEV",196,"트로피칼 선 시티 빌리지",{"$f":"INDEX(NO_참조테이블!$E:$E,MATCH(Plaza_SpawnPoint!C191,NO_참조테이블!$F:$F,0))","v":111},0]
["DEV",197,"트로피칼 선 시티 빌리지",{"$f":"INDEX(NO_참조테이블!$E:$E,MATCH(Plaza_SpawnPoint!C192,NO_참조테이블!$F:$F,0))","v":111},1]
["DEV",198,"트로피칼 선 시티 빌리지",{"$f":"INDEX(NO_참조테이블!$E:$E,MATCH(Plaza_SpawnPoint!C193,NO_참조테이블!$F:$F,0))","v":111},1]
["DEV",199,"트로피칼 선 시티 빌리지",{"$f":"INDEX(NO_참조테이블!$E:$E,MATCH(Plaza_SpawnPoint!C194,NO_참조테이블!$F:$F,0))","v":111},1]
["DEV",200,"트로피칼 선 시티 빌리지",{"$f":"INDEX(NO_참조테이블!$E:$E,MATCH(Plaza_SpawnPoint!C195,NO_참조테이블!$F:$F,0))","v":111},1]
["DEV",201,"트로피칼 선 시티 빌리지",{"$f":"INDEX(NO_참조테이블!$E:$E,MATCH(Plaza_SpawnPoint!C196,NO_참조테이블!$F:$F,0))","v":111},1]
["DEV",202,"트로피칼 선 시티 빌리지",{"$f":"INDEX(NO_참조테이블!$E:$E,MATCH(Plaza_SpawnPoint!C197,NO_참조테이블!$F:$F,0))","v":111},0]
["DEV",203,"트로피칼 선 시티 빌리지",{"$f":"INDEX(NO_참조테이블!$E:$E,MATCH(Plaza_SpawnPoint!C198,NO_참조테이블!$F:$F,0))","v":111},0]
["DEV",204,"트로피칼 선 시티 빌리지",{"$f":"INDEX(NO_참조테이블!$E:$E,MATCH(Plaza_SpawnPoint!C199,NO_참조테이블!$F:$F,0))","v":111},0]
["DEV",205,"트로피칼 선 시티 빌리지",{"$f":"INDEX(NO_참조테이블!$E:$E,MATCH(Plaza_SpawnPoint!C200,NO_참조테이블!$F:$F,0))","v":111},0]
["DEV",206,"트로피칼 선 시티 빌리지",{"$f":"INDEX(NO_참조테이블!$E:$E,MATCH(Plaza_SpawnPoint!C201,NO_참조테이블!$F:$F,0))","v":111},0]
["DEV",207,"트로피칼 선 시티 빌리지",{"$f":"INDEX(NO_참조테이블!$E:$E,MATCH(Plaza_SpawnPoint!C202,NO_참조테이블!$F:$F,0))","v":111},0]
["DEV",208,"트로피칼 선 시티 빌리지",{"$f":"INDEX(NO_참조테이블!$E:$E,MATCH(Plaza_SpawnPoint!C203,NO_참조테이블!$F:$F,0))","v":111},0]
["DEV",209,"트로피칼 선 시티 빌리지",{"$f":"INDEX(NO_참조테이블!$E:$E,MATCH(Plaza_SpawnPoint!C204,NO_참조테이블!$F:$F,0))","v":111},1]
["DEV",210,"트로피칼 선 시티 빌리지",{"$f":"INDEX(NO_참조테이블!$E:$E,MATCH(Plaza_SpawnPoint!C205,NO_참조테이블!$F:$F,0))","v":111},1]
["DEV",211,"트로피칼 선 시티 빌리지",{"$f":"INDEX(NO_참조테이블!$E:$E,MATCH(Plaza_SpawnPoint!C206,NO_참조테이블!$F:$F,0))","v":111},1]
["DEV",212,"트로피칼 선 시티 빌리지",{"$f":"INDEX(NO_참조테이블!$E:$E,MATCH(Plaza_SpawnPoint!C207,NO_참조테이블!$F:$F,0))","v":111},1]
["DEV",213,"트로피칼 선 시티 빌리지",{"$f":"INDEX(NO_참조테이블!$E:$E,MATCH(Plaza_SpawnPoint!C208,NO_참조테이블!$F:$F,0))","v":111},1]
["DEV",214,"트로피칼 선 시티 빌리지",{"$f":"INDEX(NO_참조테이블!$E:$E,MATCH(Plaza_SpawnPoint!C209,NO_참조테이블!$F:$F,0))","v":111},1]
["DEV",215,"트로피칼 선 시티 빌리지",{"$f":"INDEX(NO_참조테이블!$E:$E,MATCH(Plaza_SpawnPoint!C210,NO_참조테이블!$F:$F,0))","v":111},1]
["DEV",216,"어반뷰 시티 빌리지",{"$f":"INDEX(NO_참조테이블!$E:$E,MATCH(Plaza_SpawnPoint!C211,NO_참조테이블!$F:$F,0))","v":110},0]
["DEV",217,"어반뷰 시티 빌리지",{"$f":"INDEX(NO_참조테이블!$E:$E,MATCH(Plaza_SpawnPoint!C212,NO_참조테이블!$F:$F,0))","v":110},0]
["DEV",218,"어반뷰 시티 빌리지",{"$f":"INDEX(NO_참조테이블!$E:$E,MATCH(Plaza_SpawnPoint!C213,NO_참조테이블!$F:$F,0))","v":110},0]
["DEV",219,"어반뷰 시티 빌리지",{"$f":"INDEX(NO_참조테이블!$E:$E,MATCH(Plaza_SpawnPoint!C214,NO_참조테이블!$F:$F,0))","v":110},0]
["DEV",220,"어반뷰 시티 빌리지",{"$f":"INDEX(NO_참조테이블!$E:$E,MATCH(Plaza_SpawnPoint!C215,NO_참조테이블!$F:$F,0))","v":110},0]
["DEV",221,"어반뷰 시티 빌리지",{"$f":"INDEX(NO_참조테이블!$E:$E,MATCH(Plaza_SpawnPoint!C216,NO_참조테이블!$F:$F,0))","v":110},0]
["DEV",222,"어반뷰 시티 빌리지",{"$f":"INDEX(NO_참조테이블!$E:$E,MATCH(Plaza_SpawnPoint!C217,NO_참조테이블!$F:$F,0))","v":110},1]
["DEV",223,"어반뷰 시티 빌리지",{"$f":"INDEX(NO_참조테이블!$E:$E,MATCH(Plaza_SpawnPoint!C218,NO_참조테이블!$F:$F,0))","v":110},1]
["DEV",224,"어반뷰 시티 빌리지",{"$f":"INDEX(NO_참조테이블!$E:$E,MATCH(Plaza_SpawnPoint!C219,NO_참조테이블!$F:$F,0))","v":110},1]
["DEV",225,"어반뷰 시티 빌리지",{"$f":"INDEX(NO_참조테이블!$E:$E,MATCH(Plaza_SpawnPoint!C220,NO_참조테이블!$F:$F,0))","v":110},1]
["DEV",226,"어반뷰 시티 빌리지",{"$f":"INDEX(NO_참조테이블!$E:$E,MATCH(Plaza_SpawnPoint!C221,NO_참조테이블!$F:$F,0))","v":110},1]
["DEV",227,"어반뷰 시티 빌리지",{"$f":"INDEX(NO_참조테이블!$E:$E,MATCH(Plaza_SpawnPoint!C222,NO_참조테이블!$F:$F,0))","v":110},0]
["DEV",228,"어반뷰 시티 빌리지",{"$f":"INDEX(NO_참조테이블!$E:$E,MATCH(Plaza_SpawnPoint!C223,NO_참조테이블!$F:$F,0))","v":110},0]
["DEV",229,"어반뷰 시티 빌리지",{"$f":"INDEX(NO_참조테이블!$E:$E,MATCH(Plaza_SpawnPoint!C224,NO_참조테이블!$F:$F,0))","v":110},0]
["DEV",230,"어반뷰 시티 빌리지",{"$f":"INDEX(NO_참조테이블!$E:$E,MATCH(Plaza_SpawnPoint!C225,NO_참조테이블!$F:$F,0))","v":110},0]
["DEV",231,"어반뷰 시티 빌리지",{"$f":"INDEX(NO_참조테이블!$E:$E,MATCH(Plaza_SpawnPoint!C226,NO_참조테이블!$F:$F,0))","v":110},0]
["DEV",232,"어반뷰 시티 빌리지",{"$f":"INDEX(NO_참조테이블!$E:$E,MATCH(Plaza_SpawnPoint!C227,NO_참조테이블!$F:$F,0))","v":110},0]
["DEV",233,"어반뷰 시티 빌리지",{"$f":"INDEX(NO_참조테이블!$E:$E,MATCH(Plaza_SpawnPoint!C228,NO_참조테이블!$F:$F,0))","v":110},0]
["DEV",234,"어반뷰 시티 빌리지",{"$f":"INDEX(NO_참조테이블!$E:$E,MATCH(Plaza_SpawnPoint!C229,NO_참조테이블!$F:$F,0))","v":110},1]
["DEV",235,"어반뷰 시티 빌리지",{"$f":"INDEX(NO_참조테이블!$E:$E,MATCH(Plaza_SpawnPoint!C230,NO_참조테이블!$F:$F,0))","v":110},1]
["DEV",236,"어반뷰 시티 빌리지",{"$f":"INDEX(NO_참조테이블!$E:$E,MATCH(Plaza_SpawnPoint!C231,NO_참조테이블!$F:$F,0))","v":110},1]
["DEV",237,"어반뷰 시티 빌리지",{"$f":"INDEX(NO_참조테이블!$E:$E,MATCH(Plaza_SpawnPoint!C232,NO_참조테이블!$F:$F,0))","v":110},1]
["DEV",238,"어반뷰 시티 빌리지",{"$f":"INDEX(NO_참조테이블!$E:$E,MATCH(Plaza_SpawnPoint!C233,NO_참조테이블!$F:$F,0))","v":110},1]
["DEV",239,"어반뷰 시티 빌리지",{"$f":"INDEX(NO_참조테이블!$E:$E,MATCH(Plaza_SpawnPoint!C234,NO_참조테이블!$F:$F,0))","v":110},1]
["DEV",240,"어반뷰 시티 빌리지",{"$f":"INDEX(NO_참조테이블!$E:$E,MATCH(Plaza_SpawnPoint!C235,NO_참조테이블!$F:$F,0))","v":110},1]
["DEV",241,"트로피칼 선 스테이트 하우스",{"$f":"INDEX(NO_참조테이블!$E:$E,MATCH(Plaza_SpawnPoint!C236,NO_참조테이블!$F:$F,0))","v":100},0]
["DEV",242,"퀸즈 팰리스 스테이트 하우스",{"$f":"INDEX(NO_참조테이블!$E:$E,MATCH(Plaza_SpawnPoint!C237,NO_참조테이블!$F:$F,0))","v":101},0]
["DEV",243,"에버그린 스테이트 하우스",{"$f":"INDEX(NO_참조테이블!$E:$E,MATCH(Plaza_SpawnPoint!C238,NO_참조테이블!$F:$F,0))","v":102},0]
["DEV",244,"어반뷰 스테이트 하우스",{"$f":"INDEX(NO_참조테이블!$E:$E,MATCH(Plaza_SpawnPoint!C239,NO_참조테이블!$F:$F,0))","v":103},0]
["DEV",245,"마이 가든",{"$f":"INDEX(NO_참조테이블!$E:$E,MATCH(Plaza_SpawnPoint!C240,NO_참조테이블!$F:$F,0))","v":104},0]
["DEV",246,"패션 스트릿",{"$f":"INDEX(NO_참조테이블!$E:$E,MATCH(Plaza_SpawnPoint!C241,NO_참조테이블!$F:$F,0))","v":108},0]
["DEV",247,"패션 스트릿",{"$f":"INDEX(NO_참조테이블!$E:$E,MATCH(Plaza_SpawnPoint!C242,NO_참조테이블!$F:$F,0))","v":108},0]
["DEV",248,"패션 스트릿",{"$f":"INDEX(NO_참조테이블!$E:$E,MATCH(Plaza_SpawnPoint!C243,NO_참조테이블!$F:$F,0))","v":108},0]
["DEV",20011,"패션 스퀘어",{"$f":"INDEX(NO_참조테이블!$E:$E,MATCH(Plaza_SpawnPoint!C244,NO_참조테이블!$F:$F,0))","v":2001},0]
["DEV",20012,"패션 스퀘어",{"$f":"INDEX(NO_참조테이블!$E:$E,MATCH(Plaza_SpawnPoint!C245,NO_참조테이블!$F:$F,0))","v":2001},0]
["DEV",20013,"패션 스퀘어",{"$f":"INDEX(NO_참조테이블!$E:$E,MATCH(Plaza_SpawnPoint!C246,NO_참조테이블!$F:$F,0))","v":2001},0]
["DEV",20014,"패션 스퀘어",{"$f":"INDEX(NO_참조테이블!$E:$E,MATCH(Plaza_SpawnPoint!C247,NO_참조테이블!$F:$F,0))","v":2001},0]
["DEV",20061,"시나모롤 하우스",{"$f":"INDEX(NO_참조테이블!$E:$E,MATCH(Plaza_SpawnPoint!C248,NO_참조테이블!$F:$F,0))","v":2006},0]
["DEV",20015,"플레이 스퀘어",{"$f":"INDEX(NO_참조테이블!$E:$E,MATCH(Plaza_SpawnPoint!C249,NO_참조테이블!$F:$F,0))","v":2005},0]

{"sheet":"Plaza_ExchangeItem","index":5,"n_rows":18,"n_cols":7,"rows_kept":18,"cut":false,"hidden":false,"merged":[]}
["ServiceType","Key","#FieldName","FieldID","SpawnPointID","#ItemName","ItemID"]
["string","int","none","int","int","none","int"]
["All","All","Client","Client","Client","Client","Client"]
["서비스 타입","키값","필드명","필드 ID","스폰 포인트 ID","아이템명","아이템 ID"]
["DEV",1,"패션 스트릿",{"$f":"INDEX(NO_참조테이블!$E:$E,MATCH(C5,NO_참조테이블!$F:$F,0))","v":108},127,{"$f":"INDEX(NO_참조테이블!$L:$L,MATCH(Plaza_ExchangeItem!G5,NO_참조테이블!$K:$K,0))","v":"의류 수거함"},100082]
["DEV",2,"그리너리 시티 빌리지",{"$f":"INDEX(NO_참조테이블!$E:$E,MATCH(C6,NO_참조테이블!$F:$F,0))","v":109},128,{"$f":"INDEX(NO_참조테이블!$L:$L,MATCH(Plaza_ExchangeItem!G6,NO_참조테이블!$K:$K,0))","v":"리사이클링 존"},100081]
["DEV",3,"어반뷰 시티 빌리지",{"$f":"INDEX(NO_참조테이블!$E:$E,MATCH(C7,NO_참조테이블!$F:$F,0))","v":110},131,{"$f":"INDEX(NO_참조테이블!$L:$L,MATCH(Plaza_ExchangeItem!G7,NO_참조테이블!$K:$K,0))","v":"리사이클링 존"},100081]
["DEV",4,"트로피칼 선 시티 빌리지",{"$f":"INDEX(NO_참조테이블!$E:$E,MATCH(C8,NO_참조테이블!$F:$F,0))","v":111},130,{"$f":"INDEX(NO_참조테이블!$L:$L,MATCH(Plaza_ExchangeItem!G8,NO_참조테이블!$K:$K,0))","v":"리사이클링 존"},100081]
["DEV",5,"퀸즈 팰리스 시티 빌리지",{"$f":"INDEX(NO_참조테이블!$E:$E,MATCH(C9,NO_참조테이블!$F:$F,0))","v":112},129,{"$f":"INDEX(NO_참조테이블!$L:$L,MATCH(Plaza_ExchangeItem!G9,NO_참조테이블!$K:$K,0))","v":"리사이클링 존"},100081]
["DEV",6,"패션 스트릿",{"$f":"INDEX(NO_참조테이블!$E:$E,MATCH(C10,NO_참조테이블!$F:$F,0))","v":108},246,{"$f":"INDEX(NO_참조테이블!$L:$L,MATCH(Plaza_ExchangeItem!G10,NO_참조테이블!$K:$K,0))","v":"비료"},295]
["DEV",7,"패션 스트릿",{"$f":"INDEX(NO_참조테이블!$E:$E,MATCH(C11,NO_참조테이블!$F:$F,0))","v":108},247,{"$f":"INDEX(NO_참조테이블!$L:$L,MATCH(Plaza_ExchangeItem!G11,NO_참조테이블!$K:$K,0))","v":"잉크"},296]
["DEV",8,"패션 스트릿",{"$f":"INDEX(NO_참조테이블!$E:$E,MATCH(C12,NO_참조테이블!$F:$F,0))","v":108},248,{"$f":"INDEX(NO_참조테이블!$L:$L,MATCH(Plaza_ExchangeItem!G12,NO_참조테이블!$K:$K,0))","v":"모래"},297]
["DEV",20011,"패션 스퀘어",2001,20011,{"$f":"INDEX(NO_참조테이블!$L:$L,MATCH(Plaza_ExchangeItem!G13,NO_참조테이블!$K:$K,0))","v":"의류 수거함"},100082]
["DEV",20012,"패션 스퀘어",2001,20012,{"$f":"INDEX(NO_참조테이블!$L:$L,MATCH(Plaza_ExchangeItem!G14,NO_참조테이블!$K:$K,0))","v":"비료"},295]
["DEV",20013,"패션 스퀘어",2001,20013,{"$f":"INDEX(NO_참조테이블!$L:$L,MATCH(Plaza_ExchangeItem!G15,NO_참조테이블!$K:$K,0))","v":"잉크"},296]
["DEV",20014,"패션 스퀘어",2001,20014,{"$f":"INDEX(NO_참조테이블!$L:$L,MATCH(Plaza_ExchangeItem!G16,NO_참조테이블!$K:$K,0))","v":"모래"},297]
["DEV",20061,"시나모롤 하우스",{"$f":"INDEX(NO_참조테이블!$E:$E,MATCH(C17,NO_참조테이블!$F:$F,0))","v":2006},20061,{"$f":"INDEX(NO_참조테이블!$L:$L,MATCH(Plaza_ExchangeItem!G17,NO_참조테이블!$K:$K,0))","v":"열린 커튼 미니 창문 (시나모롤)"},10500016]
["DEV",20015,"플레이 스퀘어",{"$f":"INDEX(NO_참조테이블!$E:$E,MATCH(C18,NO_참조테이블!$F:$F,0))","v":2005},20015,{"$f":"INDEX(NO_참조테이블!$L:$L,MATCH(Plaza_ExchangeItem!G18,NO_참조테이블!$K:$K,0))","v":"플레이스퀘어 리사이클링함"},10500043]

{"sheet":"NO_참조테이블","index":6,"n_rows":646,"n_cols":15,"rows_kept":646,"cut":false,"hidden":false,"merged":[]}
[null,null,null,null,"[PF_FieldData.xlsm]Field!Key","[PF_FieldData.xlsm]Field!#FieldName",null,"[PF_NPCData.xlsm]NPCInfo!Key","[PF_NPCData.xlsm]NPCInfo!#NPCName",null,"[PF_ItemData.xlsm]Item!Key","[PF_ItemData.xlsm]Item!ItemNameText",null,"[PF_EnumTypeData.xlsm]EPlazaType!Key","[PF_EnumTypeData.xlsm]EPlazaType!Desc"]
[null,null,null,null,"Key","#FieldName",null,"Key","#NPCName",null,"Key","ItemNameText",null,"Key","Desc"]
[null,null,null,null,"int","none",null,"int","none",null,"int","string",null,"int","none"]
[null,null,null,null,"All","Client",null,"All","Client",null,"All","All",null,"All","All"]
[null,null,null,null,"구역 ID","구역명",null,"NPCID","#NPC명",null,"아이템 ID","아이템명",null,"열거형 숫자","요약"]
[null,null,null,null,100,"트로피칼 선 스테이트 하우스",null,1,"이브",null,1,"(임시) 기본 바닥",null,1,"벌목 랜드마크"]
["※ 데이터 입력 시작하시기 전에 ",null,null,null,101,"퀸즈 팰리스 스테이트 하우스",null,2,"토리",null,2,"브라운 키친 벽 선반",null,2,"빌리지"]
["꼭 데이터 불러와주세요!",null,null,null,102,"에버그린 스테이트 하우스",null,3,"조이",null,3,"(임시) 카펫",null,3,"센트럴타운"]
[null,null,null,null,103,"어반뷰 스테이트 하우스",null,4,"덕키",null,4,"(임시) 테이블",null,4,"일반 랜드마크"]
["※ 버튼 누른 후 관련 팝업창이 뜰",null,null,null,104,"마이 가든",null,5,"피터",null,5,"(임시) 의자",null,5,"패션 스퀘어"]
["경우, 모두 [X 버튼] 눌러주세요!",null,null,null,105,"센트럴 타운",null,6,"파커",null,6,"(임시) 소품",null,6,"시나모롤 스퀘어"]
[null,null,null,null,106,"어드벤처 포레스트",null,7,"테오",null,7,"(임시) 수상 가구",null,7,"플레이 스퀘어"]
[null,null,null,null,107,"퀸즈 팰리스 랜드마크",null,8,"올리버",null,8,"(임시) 울타리",null,8,"시나모롤 하우스"]
[null,null,null,null,108,"패션 스트릿",null,9,"루비",null,9,"(임시) 공중 벽 가구"]
[null,null,null,null,109,"그리너리 시티 빌리지",null,10,"미아",null,10,"(임시) 야외 바닥재"]
[null,null,null,null,110,"어반뷰 시티 빌리지",null,11,"리아",null,11,"(임시) 벽지"]
[null,null,null,null,111,"트로피칼 선 시티 빌리지",null,12,"콜",null,12,"(임시) 바닥재"]
[null,null,null,null,112,"퀸즈 팰리스 시티 빌리지",null,13,"이안",null,13,"(임시) 시럽"]
[null,null,null,null,2001,"패션 스퀘어",null,14,"로지",null,14,"보드라운 복숭아빛 물감"]
[null,null,null,null,2002,"미용실",null,15,"버기",null,15,"시크릿북: 민트 배쓰룸 수건대"]
[null,null,null,null,2003,"시나모롤 스퀘어",null,16,"올리버의 직원",null,16,"(임시) 스티커1"]
[null,null,null,null,2004,"타운맵",null,17,"이벤트 NPC",null,17,"옐로우 팝핑 스티커"]
[null,null,null,null,2005,"플레이 스퀘어",null,1001,"헬로키티",null,18,"(임시) 스티커3"]
[null,null,null,null,2006,"시나모롤 하우스",null,1002,"시나모롤",null,19,"(임시) 음식"]
[null,null,null,null,null,null,null,1003,"폼폼푸린",null,20,"아이템 상자 (확률형)"]
[null,null,null,null,null,null,null,2001,"쿠로미",null,23,"밭"]
[null,null,null,null,null,null,null,2002,"마이 멜로디",null,24,"밀"]
[null,null,null,null,null,null,null,3001,"포차코",null,25,"편백나무"]
[null,null,null,null,null,null,null,1004,"키키",null,26,"편백나무 자재"]
[null,null,null,null,null,null,null,1005,"라라",null,27,"감자"]
[null,null,null,null,null,null,null,3002,"한교동",null,28,"젖소"]
[null,null,null,null,null,null,null,3003,"케로케로케로피",null,29,"우유"]
[null,null,null,null,null,null,null,3004,"배드바츠마루",null,30,"고무나무"]
[null,null,null,null,null,null,null,3005,"아히루노페클",null,31,"고무 원액"]
[null,null,null,null,null,null,null,3006,"턱시도샘",null,32,"옥수수"]
[null,null,null,null,null,null,null,2003,"마이스윗피아노",null,33,"라임나무"]
[null,null,null,null,null,null,null,4001,"구데타마",null,34,"라임"]
[null,null,null,null,null,null,null,null,null,null,35,"닭"]
[null,null,null,null,null,null,null,null,null,null,36,"달걀"]
[null,null,null,null,null,null,null,null,null,null,37,"콩"]
[null,null,null,null,null,null,null,null,null,null,38,"닥나무"]
[null,null,null,null,null,null,null,null,null,null,39,"닥나무 자재"]
[null,null,null,null,null,null,null,null,null,null,40,"목화"]
[null,null,null,null,null,null,null,null,null,null,41,"개나리"]
[null,null,null,null,null,null,null,null,null,null,42,"해바라기"]
[null,null,null,null,null,null,null,null,null,null,43,"코스모스"]
[null,null,null,null,null,null,null,null,null,null,44,"포인세티아"]
[null,null,null,null,null,null,null,null,null,null,45,"꿀벌"]
[null,null,null,null,null,null,null,null,null,null,46,"꿀"]
[null,null,null,null,null,null,null,null,null,null,47,"사과나무"]
[null,null,null,null,null,null,null,null,null,null,48,"사과"]
[null,null,null,null,null,null,null,null,null,null,49,"당근"]
[null,null,null,null,null,null,null,null,null,null,50,"양"]
[null,null,null,null,null,null,null,null,null,null,51,"양털"]
[null,null,null,null,null,null,null,null,null,null,52,"복숭아 나무"]
[null,null,null,null,null,null,null,null,null,null,53,"복숭아"]
[null,null,null,null,null,null,null,null,null,null,54,"마그네슘"]
[null,null,null,null,null,null,null,null,null,null,55,"광천수"]
[null,null,null,null,null,null,null,null,null,null,56,"고구마"]
[null,null,null,null,null,null,null,null,null,null,57,"사슴"]
[null,null,null,null,null,null,null,null,null,null,58,"사슴 뿔"]
[null,null,null,null,null,null,null,null,null,null,59,"석탄"]
[null,null,null,null,null,null,null,null,null,null,60,"단풍나무"]
[null,null,null,null,null,null,null,null,null,null,61,"단풍나무 자재"]
[null,null,null,null,null,null,null,null,null,null,62,"사탕수수"]
[null,null,null,null,null,null,null,null,null,null,63,"자갈"]
[null,null,null,null,null,null,null,null,null,null,64,"흙"]
[null,null,null,null,null,null,null,null,null,null,65,"흰 대리석"]
[null,null,null,null,null,null,null,null,null,null,66,"양파"]
[null,null,null,null,null,null,null,null,null,null,67,"바나나 나무"]
[null,null,null,null,null,null,null,null,null,null,68,"바나나"]
[null,null,null,null,null,null,null,null,null,null,69,"달팽이"]
[null,null,null,null,null,null,null,null,null,null,70,"점액"]
[null,null,null,null,null,null,null,null,null,null,71,"철판"]
[null,null,null,null,null,null,null,null,null,null,72,"검은 대리석"]
[null,null,null,null,null,null,null,null,null,null,73,"소나무"]
[null,null,null,null,null,null,null,null,null,null,74,"소나무 자재"]
[null,null,null,null,null,null,null,null,null,null,75,"아보카도 나무"]
[null,null,null,null,null,null,null,null,null,null,76,"아보카도"]
[null,null,null,null,null,null,null,null,null,null,77,"구리"]
[null,null,null,null,null,null,null,null,null,null,78,"토끼"]
[null,null,null,null,null,null,null,null,null,null,79,"토끼털"]
[null,null,null,null,null,null,null,null,null,null,80,"석회석"]
[null,null,null,null,null,null,null,null,null,null,81,"딸기"]
[null,null,null,null,null,null,null,null,null,null,82,"은 덩어리"]
[null,null,null,null,null,null,null,null,null,null,83,"파인애플"]
[null,null,null,null,null,null,null,null,null,null,84,"말"]
[null,null,null,null,null,null,null,null,null,null,85,"말털"]
[null,null,null,null,null,null,null,null,null,null,86,"올리브 나무"]
[null,null,null,null,null,null,null,null,null,null,87,"올리브"]
[null,null,null,null,null,null,null,null,null,null,88,"금 덩어리"]
[null,null,null,null,null,null,null,null,null,null,89,"양상추"]
[null,null,null,null,null,null,null,null,null,null,90,"커피 나무"]
[null,null,null,null,null,null,null,null,null,null,91,"커피 콩"]
[null,null,null,null,null,null,null,null,null,null,92,"아연"]
[null,null,null,null,null,null,null,null,null,null,93,"참나무"]
[null,null,null,null,null,null,null,null,null,null,94,"도토리"]
[null,null,null,null,null,null,null,null,null,null,95,"파피루스"]
[null,null,null,null,null,null,null,null,null,null,96,"오리"]
[null,null,null,null,null,null,null,null,null,null,97,"황금알"]
[null,null,null,null,null,null,null,null,null,null,98,"백금"]
[null,null,null,null,null,null,null,null,null,null,99,"호두나무"]
[null,null,null,null,null,null,null,null,null,null,100,"호두"]
[null,null,null,null,null,null,null,null,null,null,101,"아몬드 나무"]
[null,null,null,null,null,null,null,null,null,null,102,"아몬드"]
[null,null,null,null,null,null,null,null,null,null,103,"빛나는 수정"]
[null,null,null,null,null,null,null,null,null,null,104,"씨앗"]
[null,null,null,null,null,null,null,null,null,null,105,"장미"]
[null,null,null,null,null,null,null,null,null,null,106,"가시 덤불"]
[null,null,null,null,null,null,null,null,null,null,107,"잔가지"]
[null,null,null,null,null,null,null,null,null,null,108,"돌맹이"]
[null,null,null,null,null,null,null,null,null,null,109,"살짝 뻗친 중단발"]
[null,null,null,null,null,null,null,null,null,null,110,"기본 의상"]
[null,null,null,null,null,null,null,null,null,null,111,"채굴 바닥"]
[null,null,null,null,null,null,null,null,null,null,112,"수레"]
[null,null,null,null,null,null,null,null,null,null,113,"황토"]
[null,null,null,null,null,null,null,null,null,null,114,"잡초"]
[null,null,null,null,null,null,null,null,null,null,115,"근사한 저택"]
[null,null,null,null,null,null,null,null,null,null,116,"광산 바위"]
[null,null,null,null,null,null,null,null,null,null,117,"(임시) 태닝 아이템"]
[null,null,null,null,null,null,null,null,null,null,118,"백마"]
[null,null,null,null,null,null,null,null,null,null,119,"시크릿북: 민트 배쓰룸 의자"]
[null,null,null,null,null,null,null,null,null,null,120,"시크릿북: 민트 배쓰룸 파티션"]
[null,null,null,null,null,null,null,null,null,null,121,"시크릿북: 민트 배쓰룸 난로"]
[null,null,null,null,null,null,null,null,null,null,122,"시크릿북: 민트 배쓰룸 발 받침대"]
[null,null,null,null,null,null,null,null,null,null,123,"화이트 서랍장"]
[null,null,null,null,null,null,null,null,null,null,124,"초록색 눈동자"]
[null,null,null,null,null,null,null,null,null,null,125,"붉은색 눈동자"]
[null,null,null,null,null,null,null,null,null,null,126,"슈크림 인디고"]
[null,null,null,null,null,null,null,null,null,null,127,"(임시) 스페셜 수상 가구"]
[null,null,null,null,null,null,null,null,null,null,128,"(임시) 스페셜 소품"]
[null,null,null,null,null,null,null,null,null,null,129,"(임시) 스페셜 울타리"]
[null,null,null,null,null,null,null,null,null,null,4038,"초록색 의자"]
[null,null,null,null,null,null,null,null,null,null,4070,"남색 서랍장"]
[null,null,null,null,null,null,null,null,null,null,4218,"밴치"]
[null,null,null,null,null,null,null,null,null,null,4252,"파티션"]
[null,null,null,null,null,null,null,null,null,null,4938,"빨간 소파"]
[null,null,null,null,null,null,null,null,null,null,5666,"딸기 의자"]
[null,null,null,null,null,null,null,null,null,null,130,"(임시) 스티커4"]
[null,null,null,null,null,null,null,null,null,null,131,"(임시) 스티커5"]
[null,null,null,null,null,null,null,null,null,null,132,"(임시) 스티커6"]
[null,null,null,null,null,null,null,null,null,null,133,"라이트 분홍 스티커"]
[null,null,null,null,null,null,null,null,null,null,134,"(임시) 유료 가구"]
[null,null,null,null,null,null,null,null,null,null,135,"(임시) 페인트"]
[null,null,null,null,null,null,null,null,null,null,136,"턱1"]
[null,null,null,null,null,null,null,null,null,null,137,"턱2"]
[null,null,null,null,null,null,null,null,null,null,138,"턱3"]
[null,null,null,null,null,null,null,null,null,null,7639,"(임시) 오리배"]
[null,null,null,null,null,null,null,null,null,null,7670,"(임시) 장난감 배"]
[null,null,null,null,null,null,null,null,null,null,200969,"(임시) 샹들리에"]
[null,null,null,null,null,null,null,null,null,null,201242,"(임시) 구름"]
[null,null,null,null,null,null,null,null,null,null,201436,"(임시) 초승달"]
[null,null,null,null,null,null,null,null,null,null,6056,"스위티 랑데뷰 바 테이블"]
[null,null,null,null,null,null,null,null,null,null,4208,"벽돌 벽지"]
[null,null,null,null,null,null,null,null,null,null,4220,"기본 침대"]
[null,null,null,null,null,null,null,null,null,null,6204,"고급 대리석 바닥재"]
[null,null,null,null,null,null,null,null,null,null,201,"평범한 작업대"]
[null,null,null,null,null,null,null,null,null,null,202,"평범한 작업대"]
[null,null,null,null,null,null,null,null,null,null,203,"주방 조리대"]
[null,null,null,null,null,null,null,null,null,null,204,"주방 조리대"]
[null,null,null,null,null,null,null,null,null,null,205,"특별한 작업대"]
[null,null,null,null,null,null,null,null,null,null,206,"특별한 작업대"]
[null,null,null,null,null,null,null,null,null,null,140,"파스텔 스카이 블루빛 물감"]
[null,null,null,null,null,null,null,null,null,null,141,"초록빛 5색 랜덤 물감"]
[null,null,null,null,null,null,null,null,null,null,142,"분홍빛 5색 랜덤 물감"]
[null,null,null,null,null,null,null,null,null,null,143,"심플한 티셔츠"]
[null,null,null,null,null,null,null,null,null,null,144,"심플한 롱티셔츠"]
[null,null,null,null,null,null,null,null,null,null,145,"깔끔한 로퍼"]
[null,null,null,null,null,null,null,null,null,null,146,"기본 악세서리"]
[null,null,null,null,null,null,null,null,null,null,148,"베이직 9부 바지"]
[null,null,null,null,null,null,null,null,null,null,149,"베이직 미니스커트"]
[null,null,null,null,null,null,null,null,null,null,150,"태닝 아이템 2"]
[null,null,null,null,null,null,null,null,null,null,151,"태닝 아이템 3"]
[null,null,null,null,null,null,null,null,null,null,1000000,"밤하늘 귀걸이"]
[null,null,null,null,null,null,null,null,null,null,1000001,"밤하늘 요정의 귀"]
[null,null,null,null,null,null,null,null,null,null,1000002,"밤하늘 날개"]
[null,null,null,null,null,null,null,null,null,null,1000003,"밤하늘의 별"]
[null,null,null,null,null,null,null,null,null,null,1000004,"밤하늘 왕관"]
[null,null,null,null,null,null,null,null,null,null,1000005,"밤하늘 뿔"]
[null,null,null,null,null,null,null,null,null,null,1000006,"밤하늘 쵸커"]
[null,null,null,null,null,null,null,null,null,null,1000007,"밤하늘의 달"]
[null,null,null,null,null,null,null,null,null,null,1000008,"밤하늘 미니백"]
[null,null,null,null,null,null,null,null,null,null,1000009,"밤하늘 지팡이"]
[null,null,null,null,null,null,null,null,null,null,1000010,"밤하늘 오른쪽 망토"]
[null,null,null,null,null,null,null,null,null,null,1000011,"밤하늘 왼쪽 망토"]
[null,null,null,null,null,null,null,null,null,null,1000012,"밤하늘 눈물"]
[null,null,null,null,null,null,null,null,null,null,1000013,"밤하늘 체인"]
[null,null,null,null,null,null,null,null,null,null,1000014,"빗질 안 한 짧은 머리"]
[null,null,null,null,null,null,null,null,null,null,1000015,"밤하늘의 꽃잎"]
[null,null,null,null,null,null,null,null,null,null,1000016,"귀여운 얼굴"]
[null,null,null,null,null,null,null,null,null,null,152,"로지 캔디빛 물감"]
[null,null,null,null,null,null,null,null,null,null,153,"트루 퍼플빛 물감"]
[null,null,null,null,null,null,null,null,null,null,154,"봄 내음 진달래빛 물감"]
[null,null,null,null,null,null,null,null,null,null,155,"태닝 아이템 4"]
[null,null,null,null,null,null,null,null,null,null,1000017,"파란색 렌즈"]
[null,null,null,null,null,null,null,null,null,null,1000018,"오드아이 렌즈"]
[null,null,null,null,null,null,null,null,null,null,156,"기본 자동차"]
[null,null,null,null,null,null,null,null,null,null,157,"기본 자전거"]
[null,null,null,null,null,null,null,null,null,null,158,"기본 말"]
[null,null,null,null,null,null,null,null,null,null,159,"기본 킥보드"]
[null,null,null,null,null,null,null,null,null,null,160,"임시 도시 하우스 프랍"]
[null,null,null,null,null,null,null,null,null,null,161,"임시 시골 하우스 프랍"]
[null,null,null,null,null,null,null,null,null,null,162,"임시 유럽풍 하우스 프랍"]
[null,null,null,null,null,null,null,null,null,null,163,"임시 휴양지 하우스 프랍"]
[null,null,null,null,null,null,null,null,null,null,1000019,"자연스러운 웨이브펌"]
[null,null,null,null,null,null,null,null,null,null,1000020,"차분한 얼굴"]
[null,null,null,null,null,null,null,null,null,null,1000021,"초롱초롱한 얼굴"]
[null,null,null,null,null,null,null,null,null,null,164,"유럽풍 궁전"]
[null,null,null,null,null,null,null,null,null,null,165,"심플한 운동화"]
[null,null,null,null,null,null,null,null,null,null,1000022,"정리 안된 단발 머리"]
[null,null,null,null,null,null,null,null,null,null,1000023,"브라운 렌즈"]
[null,null,null,null,null,null,null,null,null,null,1000024,"핑크 퍼플 라일락 렌즈"]
[null,null,null,null,null,null,null,null,null,null,1000025,"심플한 긴팔 니트"]
[null,null,null,null,null,null,null,null,null,null,1000026,"심플한 반바지"]
[null,null,null,null,null,null,null,null,null,null,1000027,"심플한 화이트 벨크로 운동화"]
[null,null,null,null,null,null,null,null,null,null,1000028,"정리 안된 묶음 머리"]
[null,null,null,null,null,null,null,null,null,null,1000029,"정리 안된 브릿지 묶음 머리 "]
[null,null,null,null,null,null,null,null,null,null,1000030,"심플한 스트라이트 니트"]
[null,null,null,null,null,null,null,null,null,null,1000031,"심플한 청바지"]
[null,null,null,null,null,null,null,null,null,null,1000032,"심플한 검은색 캔버스화"]
[null,null,null,null,null,null,null,null,null,null,1000033,"밤하늘 드레스"]
[null,null,null,null,null,null,null,null,null,null,1000034,"밤하늘 스트랩 펌프스"]
[null,null,null,null,null,null,null,null,null,null,1000035,"정리 안된 웨이브 헤어"]
[null,null,null,null,null,null,null,null,null,null,1000036,"심플한 리본 원피스"]
[null,null,null,null,null,null,null,null,null,null,1000037,"심플한 리본 샌들"]
[null,null,null,null,null,null,null,null,null,null,166,"아이템 상자 (선택형)"]
[null,null,null,null,null,null,null,null,null,null,167,"아이템 상자 (고정형)"]
[null,null,null,null,null,null,null,null,null,null,1000038,"어깨에 닿는 레게머리"]
[null,null,null,null,null,null,null,null,null,null,1000039,"보송보송 곱슬머리"]
[null,null,null,null,null,null,null,null,null,null,1000040,"심플한 가르마 짧은 머리"]
[null,null,null,null,null,null,null,null,null,null,1000041,"심플한 긴팔 셔츠"]
[null,null,null,null,null,null,null,null,null,null,1000042,"심플한 정장 바지"]
[null,null,null,null,null,null,null,null,null,null,1000043,"심플한 검정 정장 구두"]
[null,null,null,null,null,null,null,null,null,null,168,"건설중인 하우스 프랍"]
[null,null,null,null,null,null,null,null,null,null,1000044,"살짝 뻗친 중단발"]
[null,null,null,null,null,null,null,null,null,null,1000045,"심플 곰돌이 티셔츠"]
[null,null,null,null,null,null,null,null,null,null,1000046,"개나리 플랫 슈즈"]
[null,null,null,null,null,null,null,null,null,null,1000047,"빗질 안 한 짧은 머리"]
[null,null,null,null,null,null,null,null,null,null,1000048,"심플 브이넥 티셔츠"]
[null,null,null,null,null,null,null,null,null,null,1000049,"동글동글한 얼굴"]
[null,null,null,null,null,null,null,null,null,null,1000050,"장난꾸러기 얼굴"]
[null,null,null,null,null,null,null,null,null,null,169,"트로피칼 파라다이스 하우스"]
[null,null,null,null,null,null,null,null,null,null,100000,"펫 하우스"]
[null,null,null,null,null,null,null,null,null,null,1000051,"바이올렛 페어리 원피스"]
[null,null,null,null,null,null,null,null,null,null,1000052,"바이올렛 페어리 파스텔 슈즈"]
[null,null,null,null,null,null,null,null,null,null,1000053,"바이올렛 페어리 땋은 머리"]
[null,null,null,null,null,null,null,null,null,null,1000054,"바이올렛 페어리 나비핀"]
[null,null,null,null,null,null,null,null,null,null,1000055,"바이올렛 페어리 아우라"]
[null,null,null,null,null,null,null,null,null,null,1000056,"바이올렛 페어리 플라워"]
[null,null,null,null,null,null,null,null,null,null,1000057,"바이올렛 페어리 미니백"]
[null,null,null,null,null,null,null,null,null,null,1000058,"바이올렛 페어리 이어링"]
[null,null,null,null,null,null,null,null,null,null,1000059,"바이올렛 페어리 리본"]
[null,null,null,null,null,null,null,null,null,null,1000060,"바이올렛 페어리 네이비 슈즈"]
[null,null,null,null,null,null,null,null,null,null,1000061,"바이올렛 메이크업 얼굴"]
[null,null,null,null,null,null,null,null,null,null,1000062,"핑크 페어리 리본"]
[null,null,null,null,null,null,null,null,null,null,1000063,"봄바람 양갈래 땋은머리"]
[null,null,null,null,null,null,null,null,null,null,1000064,"봄바람 니트 가디건 원피스"]
[null,null,null,null,null,null,null,null,null,null,1000065,"봄바람 메리제인 슈즈"]
[null,null,null,null,null,null,null,null,null,null,1000066,"봄바람 동글 화이트 크로스백"]
[null,null,null,null,null,null,null,null,null,null,1000067,"봄바람 가르마 헤어"]
[null,null,null,null,null,null,null,null,null,null,1000068,"봄바람 니트 가디건"]
[null,null,null,null,null,null,null,null,null,null,1000069,"봄바람 체크 반바지"]
[null,null,null,null,null,null,null,null,null,null,1000070,"봄바람 가죽 로퍼"]
[null,null,null,null,null,null,null,null,null,null,1000071,"찰랑 여름 보브컷 헤어"]
[null,null,null,null,null,null,null,null,null,null,1000072,"찰랑 여름 프릴 나시"]
[null,null,null,null,null,null,null,null,null,null,1000073,"찰랑 여름 밴딩 숏팬츠"]
[null,null,null,null,null,null,null,null,null,null,1000074,"찰랑 여름 매듭 슬리퍼"]
[null,null,null,null,null,null,null,null,null,null,1000075,"찰랑 여름 리프펌 헤어"]
[null,null,null,null,null,null,null,null,null,null,1000076,"찰랑 여름 면셔츠"]
[null,null,null,null,null,null,null,null,null,null,1000077,"찰랑 여름 밴딩 하프팬츠"]
[null,null,null,null,null,null,null,null,null,null,1000078,"찰랑 여름 스포츠백"]
[null,null,null,null,null,null,null,null,null,null,1000079,"또렷한 얼굴"]
[null,null,null,null,null,null,null,null,null,null,1000080,"자신만만한 얼굴"]
[null,null,null,null,null,null,null,null,null,null,1000081,"부드러운 얼굴"]
[null,null,null,null,null,null,null,null,null,null,1000082,"샤프한 얼굴"]
[null,null,null,null,null,null,null,null,null,null,1000083,"엉뚱한 얼굴"]
[null,null,null,null,null,null,null,null,null,null,1000084,"재밌는 얼굴"]
[null,null,null,null,null,null,null,null,null,null,1000085,"차분한 얼굴"]
[null,null,null,null,null,null,null,null,null,null,1000086,"진지한 얼굴"]
[null,null,null,null,null,null,null,null,null,null,100001,"쟁반 위 새콤 양념통"]
[null,null,null,null,null,null,null,null,null,null,100002,"쟁반 위 매콤 양념통"]
[null,null,null,null,null,null,null,null,null,null,100003,"벽걸이 조리도구 세트"]
[null,null,null,null,null,null,null,null,null,null,100004,"레드 매트 머랭 보울"]
[null,null,null,null,null,null,null,null,null,null,100005,"냄비 2종 세트"]
[null,null,null,null,null,null,null,null,null,null,100006,"도마 위 양파"]
[null,null,null,null,null,null,null,null,null,null,100007,"물고기 쿠션과 고양이"]
[null,null,null,null,null,null,null,null,null,null,100008,"오므라이스 메뉴판"]
[null,null,null,null,null,null,null,null,null,null,100009,"그린우드 미니 컵보드"]
[null,null,null,null,null,null,null,null,null,null,100010,"그린우드 미니 찬장"]
[null,null,null,null,null,null,null,null,null,null,100011,"골든 플레이트 랙"]
[null,null,null,null,null,null,null,null,null,null,100012,"민트 플레이트 랙"]
[null,null,null,null,null,null,null,null,null,null,100013,"그린우드 스무디 테이블"]
[null,null,null,null,null,null,null,null,null,null,100014,"웰빙 야채 바구니"]
[null,null,null,null,null,null,null,null,null,null,100015,"내츄럴 커튼 미니 창문"]
[null,null,null,null,null,null,null,null,null,null,100016,"살짝 열린 내츄럴 커튼 미니 창문"]
[null,null,null,null,null,null,null,null,null,null,100017,"반쯤 열린 우든 도어"]
[null,null,null,null,null,null,null,null,null,null,100018,"미니 웰빙 가드닝 테이블"]
[null,null,null,null,null,null,null,null,null,null,100019,"그리너리 배색 냉장고"]
[null,null,null,null,null,null,null,null,null,null,100020,"그린우드 벽걸이 환풍구"]
[null,null,null,null,null,null,null,null,null,null,100021,"따끈따끈 대형 오븐"]
[null,null,null,null,null,null,null,null,null,null,100022,"옐로우 매트 키친 테이블"]
[null,null,null,null,null,null,null,null,null,null,100023,"베이지 원목 장식장"]
[null,null,null,null,null,null,null,null,null,null,100024,"브라운 원목 장식장"]
[null,null,null,null,null,null,null,null,null,null,100025,"옐로 베이지 오븐 겸 버너"]
[null,null,null,null,null,null,null,null,null,null,100026,"주방용 베이지 대형 싱크대"]
[null,null,null,null,null,null,null,null,null,null,100027,"내츄럴 그린 리프 패턴 벽지"]
[null,null,null,null,null,null,null,null,null,null,100028,"내츄럴 우드 바닥"]
[null,null,null,null,null,null,null,null,null,null,100029,"브라이트 오렌지 그라데이션 벽지"]
[null,null,null,null,null,null,null,null,null,null,100030,"브라이트 오렌지 사각 패턴 바닥"]
[null,null,null,null,null,null,null,null,null,null,1000087,"소프트 어텀 펌 단발 헤어"]
[null,null,null,null,null,null,null,null,null,null,1000088,"소프트 어텀 아가일 니트 원피스"]
[null,null,null,null,null,null,null,null,null,null,1000089,"소프트 어텀 레더 부츠"]
[null,null,null,null,null,null,null,null,null,null,1000090,"소프트 어텀 가르마펌 헤어"]
[null,null,null,null,null,null,null,null,null,null,1000091,"소프트 어텀 캐주얼 블레이저"]
[null,null,null,null,null,null,null,null,null,null,1000092,"소프트 어텀 슬랙스"]
[null,null,null,null,null,null,null,null,null,null,1000093,"소프트 어텀 화이트 로퍼"]
[null,null,null,null,null,null,null,null,null,null,1000094,"소프트 어텀 니트 목도리"]
[null,null,null,null,null,null,null,null,null,null,100031,"갈색 조랑말"]
[null,null,null,null,null,null,null,null,null,null,100032,"까만 조랑말"]
[null,null,null,null,null,null,null,null,null,null,1000095,"포근 겨울 미디웨이브 헤어"]
[null,null,null,null,null,null,null,null,null,null,1000096,"포근 겨울 케이프 숏코트"]
[null,null,null,null,null,null,null,null,null,null,1000097,"포근 겨울 울 스커트"]
[null,null,null,null,null,null,null,null,null,null,1000098,"포근 겨울 레더 워커"]
[null,null,null,null,null,null,null,null,null,null,1000099,"포근 겨울 댄디컷 헤어"]
[null,null,null,null,null,null,null,null,null,null,1000100,"포근 겨울 롱코트"]
[null,null,null,null,null,null,null,null,null,null,1000101,"포근 겨울 울 팬츠"]
[null,null,null,null,null,null,null,null,null,null,1000102,"포근 겨울 귀마개"]
[null,null,null,null,null,null,null,null,null,null,170,"스노우 바이올렛"]
[null,null,null,null,null,null,null,null,null,null,171,"로지 베이지"]
[null,null,null,null,null,null,null,null,null,null,172,"크림 베이지"]
[null,null,null,null,null,null,null,null,null,null,173,"그레이쉬 오렌지"]
[null,null,null,null,null,null,null,null,null,null,174,"차분한 민트"]
[null,null,null,null,null,null,null,null,null,null,175,"세피아"]
[null,null,null,null,null,null,null,null,null,null,176,"초코 브라운"]
[null,null,null,null,null,null,null,null,null,null,207,"특별한 작업대"]
[null,null,null,null,null,null,null,null,null,null,208,"특별한 작업대"]
[null,null,null,null,null,null,null,null,null,null,211,"토마토"]
[null,null,null,null,null,null,null,null,null,null,212,"박하 잎"]
[null,null,null,null,null,null,null,null,null,null,213,"포도"]
[null,null,null,null,null,null,null,null,null,null,218,"카카오 열매"]
[null,null,null,null,null,null,null,null,null,null,219,"시나몬"]
[null,null,null,null,null,null,null,null,null,null,222,"정제된 물"]
[null,null,null,null,null,null,null,null,null,null,232,"정제된 석유"]
[null,null,null,null,null,null,null,null,null,null,234,"루비"]
[null,null,null,null,null,null,null,null,null,null,235,"페리도트"]
[null,null,null,null,null,null,null,null,null,null,236,"사파이어"]
[null,null,null,null,null,null,null,null,null,null,237,"오닉스"]
[null,null,null,null,null,null,null,null,null,null,238,"다이아몬드"]
[null,null,null,null,null,null,null,null,null,null,239,"크리소베릴"]
[null,null,null,null,null,null,null,null,null,null,242,"황금달걀"]
[null,null,null,null,null,null,null,null,null,null,244,"밀랍"]
[null,null,null,null,null,null,null,null,null,null,245,"탈각한 뿔"]
[null,null,null,null,null,null,null,null,null,null,246,"알파카 털"]
[null,null,null,null,null,null,null,null,null,null,247,"뽕잎"]
[null,null,null,null,null,null,null,null,null,null,248,"오리 깃털"]
[null,null,null,null,null,null,null,null,null,null,249,"유리"]
[null,null,null,null,null,null,null,null,null,null,250,"편백나무 판자"]
[null,null,null,null,null,null,null,null,null,null,261,"노란 페인트"]
[null,null,null,null,null,null,null,null,null,null,262,"향신료"]
[null,null,null,null,null,null,null,null,null,null,263,"라임 즙"]
[null,null,null,null,null,null,null,null,null,null,264,"천"]
[null,null,null,null,null,null,null,null,null,null,265,"필라멘트"]
[null,null,null,null,null,null,null,null,null,null,266,"점토"]
[null,null,null,null,null,null,null,null,null,null,267,"동판"]
[null,null,null,null,null,null,null,null,null,null,268,"아스팔트"]
[null,null,null,null,null,null,null,null,null,null,269,"단풍나무 막대"]
[null,null,null,null,null,null,null,null,null,null,270,"시멘트"]
[null,null,null,null,null,null,null,null,null,null,271,"섬유"]
[null,null,null,null,null,null,null,null,null,null,272,"울"]
[null,null,null,null,null,null,null,null,null,null,273,"깃털 뜨개실"]
[null,null,null,null,null,null,null,null,null,null,274,"설탕"]
[null,null,null,null,null,null,null,null,null,null,275,"베개"]
[null,null,null,null,null,null,null,null,null,null,276,"소나무 막대"]
[null,null,null,null,null,null,null,null,null,null,277,"벽돌"]
[null,null,null,null,null,null,null,null,null,null,278,"털실"]
[null,null,null,null,null,null,null,null,null,null,279,"이불"]
[null,null,null,null,null,null,null,null,null,null,280,"푸른 페인트"]
[null,null,null,null,null,null,null,null,null,null,281,"노란 염료"]
[null,null,null,null,null,null,null,null,null,null,282,"푸른 염료"]
[null,null,null,null,null,null,null,null,null,null,283,"닥나무 막대"]
[null,null,null,null,null,null,null,null,null,null,284,"닥나무 판자"]
[null,null,null,null,null,null,null,null,null,null,251,"철 막대기"]
[null,null,null,null,null,null,null,null,null,null,252,"스테인리스"]
[null,null,null,null,null,null,null,null,null,null,253,"실"]
[null,null,null,null,null,null,null,null,null,null,254,"대리석"]
[null,null,null,null,null,null,null,null,null,null,255,"편백나무 막대"]
[null,null,null,null,null,null,null,null,null,null,256,"금괴"]
[null,null,null,null,null,null,null,null,null,null,257,"은괴"]
[null,null,null,null,null,null,null,null,null,null,258,"소나무 판자"]
[null,null,null,null,null,null,null,null,null,null,259,"강철 (못)"]
[null,null,null,null,null,null,null,null,null,null,260,"단풍나무 판자"]
[null,null,null,null,null,null,null,null,null,null,100033,"옐로우 양"]
[null,null,null,null,null,null,null,null,null,null,100034,"바이올렛 양"]
[null,null,null,null,null,null,null,null,null,null,100035,"브라운 젖소"]
[null,null,null,null,null,null,null,null,null,null,100036,"민트색 젖소"]
[null,null,null,null,null,null,null,null,null,null,100037,"옐로우 닭"]
[null,null,null,null,null,null,null,null,null,null,100038,"핑크 닭"]
[null,null,null,null,null,null,null,null,null,null,147,"블로썸 코티지"]
[null,null,null,null,null,null,null,null,null,null,285,"철판 의뢰서"]
[null,null,null,null,null,null,null,null,null,null,286,"구리 의뢰서"]
[null,null,null,null,null,null,null,null,null,null,287,"석회석 의뢰서"]
[null,null,null,null,null,null,null,null,null,null,288,"c"]
[null,null,null,null,null,null,null,null,null,null,289,"금 덩어리 의뢰서"]
[null,null,null,null,null,null,null,null,null,null,290,"마그네슘 의뢰서"]
[null,null,null,null,null,null,null,null,null,null,291,"석탄 의뢰서"]
[null,null,null,null,null,null,null,null,null,null,292,"아연 의뢰서"]
[null,null,null,null,null,null,null,null,null,null,100069,"초록 잎 사슴"]
[null,null,null,null,null,null,null,null,null,null,100070,"알파카"]
[null,null,null,null,null,null,null,null,null,null,100071,"핑크 알파카"]
[null,null,null,null,null,null,null,null,null,null,100072,"블루 알파카"]
[null,null,null,null,null,null,null,null,null,null,100073,"카카오 나무"]
[null,null,null,null,null,null,null,null,null,null,100074,"시나몬 나무"]
[null,null,null,null,null,null,null,null,null,null,100068,"꽃 사슴"]
[null,null,null,null,null,null,null,null,null,null,100075,"정제된 물 바닥"]
[null,null,null,null,null,null,null,null,null,null,100076,"자갈 바닥"]
[null,null,null,null,null,null,null,null,null,null,100077,"흙 바닥"]
[null,null,null,null,null,null,null,null,null,null,100078,"철판 바닥"]
[null,null,null,null,null,null,null,null,null,null,100079,"정제된 석유 바닥"]
[null,null,null,null,null,null,null,null,null,null,100080,"백합 화분"]
[null,null,null,null,null,null,null,null,null,null,100081,"리사이클링 존"]
[null,null,null,null,null,null,null,null,null,null,100082,"의류 수거함"]
[null,null,null,null,null,null,null,null,null,null,100083,"옐로 홈파티 케이크"]
[null,null,null,null,null,null,null,null,null,null,100084,"핑크 홈파티 케이크"]
[null,null,null,null,null,null,null,null,null,null,100085,"블루 홈파티 케이크"]
[null,null,null,null,null,null,null,null,null,null,100086,"기본 자동차"]
[null,null,null,null,null,null,null,null,null,null,100087,"펄 글라이더 자동차"]
[null,null,null,null,null,null,null,null,null,null,293,"옐로 코지하우스"]
[null,null,null,null,null,null,null,null,null,null,294,"브라운 코지하우스"]
[null,null,null,null,null,null,null,null,null,null,2950000,"몰"]
[null,null,null,null,null,null,null,null,null,null,2960000,"부티크"]
[null,null,null,null,null,null,null,null,null,null,2970000,"미용실"]
[null,null,null,null,null,null,null,null,null,null,999998,"편백나무"]
[null,null,null,null,null,null,null,null,null,null,100051501,"러블리 스프링 원피스"]
[null,null,null,null,null,null,null,null,null,null,100052802,"러블리 스프링 레이스 슈즈"]
[null,null,null,null,null,null,null,null,null,null,100051503,"러블리 스프링 니트"]
[null,null,null,null,null,null,null,null,null,null,100051604,"러블리 스프링 니트 반바지"]
[null,null,null,null,null,null,null,null,null,null,100052805,"러블리 스프링 단화"]
[null,null,null,null,null,null,null,null,null,null,100050106,"러블리 스프링 웨이브 묶음 헤어"]
[null,null,null,null,null,null,null,null,null,null,100050107,"러블리 스프링 숏 헤어"]
[null,null,null,null,null,null,null,null,null,null,100021501,"마쉬멜로우 세일러 원피스"]
[null,null,null,null,null,null,null,null,null,null,100022802,"마쉬멜로우 세일러 리본 구두"]
[null,null,null,null,null,null,null,null,null,null,100021503,"마쉬멜로우 세일러 리본 셔츠"]
[null,null,null,null,null,null,null,null,null,null,100021604,"마쉬멜로우 세일러 리본 반바지"]
[null,null,null,null,null,null,null,null,null,null,100022805,"마쉬멜로우 세일러 블랙 슈즈"]
[null,null,null,null,null,null,null,null,null,null,100020106,"마쉬멜로우 세일러 트윈 테일 헤어"]
[null,null,null,null,null,null,null,null,null,null,100020107,"마쉬멜로우 세일러 숏 펌 헤어"]
[null,null,null,null,null,null,null,null,null,null,100020308,"마쉬멜로우 세일러 리본 모자"]
[null,null,null,null,null,null,null,null,null,null,100021409,"마쉬멜로우 세일러 블루 리본 이어링"]
[null,null,null,null,null,null,null,null,null,null,100021410,"마쉬멜로우 세일러 옐로 리본 이어링"]
[null,null,null,null,null,null,null,null,null,null,100022411,"마쉬멜로우 세일러 리본 가방"]
[null,null,null,null,null,null,null,null,null,null,100020312,"마쉬멜로우 세일러 블루 컵"]
[null,null,null,null,null,null,null,null,null,null,100020313,"마쉬멜로우 세일러 옐로 컵"]
[null,null,null,null,null,null,null,null,null,null,100022614,"마쉬멜로우 세일러 소풍 바구니"]
[null,null,null,null,null,null,null,null,null,null,100022615,"마쉬멜로우 세일러 구름 쿠션"]
[null,null,null,null,null,null,null,null,null,null,100022616,"마쉬멜로우 세일러 2단 아이스크림"]
[null,null,null,null,null,null,null,null,null,null,10400001,"헬로키티 초대 가구"]
[null,null,null,null,null,null,null,null,null,null,10400002,"매트 키친 테이블 (시나모롤)"]
[null,null,null,null,null,null,null,null,null,null,10400003,"매트 키친 테이블 (폼폼푸린)"]
[null,null,null,null,null,null,null,null,null,null,10400004,"매트 키친 테이블 (쿠로미)"]
[null,null,null,null,null,null,null,null,null,null,10400005,"매트 키친 테이블 (마이 멜로디)"]
[null,null,null,null,null,null,null,null,null,null,10400006,"매트 키친 테이블 (포차코)"]
[null,null,null,null,null,null,null,null,null,null,10400007,"매트 키친 테이블 (리틀트윈스타)"]
[null,null,null,null,null,null,null,null,null,null,10400008,"매트 키친 테이블 (한교동)"]
[null,null,null,null,null,null,null,null,null,null,10400009,"매트 키친 테이블 (케로케로케로피)"]
[null,null,null,null,null,null,null,null,null,null,10400010,"매트 키친 테이블 (배드바츠마루)"]
[null,null,null,null,null,null,null,null,null,null,10400011,"매트 키친 테이블 (아히루노페클)"]
[null,null,null,null,null,null,null,null,null,null,10400012,"매트 키친 테이블 (턱시도샘)"]
[null,null,null,null,null,null,null,null,null,null,10400013,"매트 키친 테이블 (마이스윗피아노)"]
[null,null,null,null,null,null,null,null,null,null,10400014,"매트 키친 테이블 (구데타마)"]
[null,null,null,null,null,null,null,null,null,null,10500001,"커튼 미니 창문 (헬로키티)"]
[null,null,null,null,null,null,null,null,null,null,10500002,"커튼 미니 창문 (시나모롤)"]
[null,null,null,null,null,null,null,null,null,null,10500003,"커튼 미니 창문 (폼폼푸린)"]
[null,null,null,null,null,null,null,null,null,null,10500004,"커튼 미니 창문 (쿠로미)"]
[null,null,null,null,null,null,null,null,null,null,10500005,"커튼 미니 창문 (마이 멜로디)"]
[null,null,null,null,null,null,null,null,null,null,10500006,"커튼 미니 창문 (포차코)"]
[null,null,null,null,null,null,null,null,null,null,10500007,"커튼 미니 창문 (리틀트윈스타)"]
[null,null,null,null,null,null,null,null,null,null,10500008,"커튼 미니 창문 (한교동)"]
[null,null,null,null,null,null,null,null,null,null,10500009,"커튼 미니 창문 (케로케로케로피)"]
[null,null,null,null,null,null,null,null,null,null,10500010,"커튼 미니 창문 (배드바츠마루)"]
[null,null,null,null,null,null,null,null,null,null,10500011,"커튼 미니 창문 (아히루노페클)"]
[null,null,null,null,null,null,null,null,null,null,10500012,"커튼 미니 창문 (턱시도샘)"]
[null,null,null,null,null,null,null,null,null,null,10500013,"커튼 미니 창문 (마이스윗피아노)"]
[null,null,null,null,null,null,null,null,null,null,10500014,"커튼 미니 창문 (구데타마)"]
[null,null,null,null,null,null,null,null,null,null,10500015,"열린 커튼 미니 창문 (헬로키티)"]
[null,null,null,null,null,null,null,null,null,null,10500016,"열린 커튼 미니 창문 (시나모롤)"]
[null,null,null,null,null,null,null,null,null,null,10500017,"열린 커튼 미니 창문 (폼폼푸린)"]
[null,null,null,null,null,null,null,null,null,null,10500018,"열린 커튼 미니 창문 (쿠로미)"]
[null,null,null,null,null,null,null,null,null,null,10500019,"열린 커튼 미니 창문 (마이 멜로디)"]
[null,null,null,null,null,null,null,null,null,null,10500020,"열린 커튼 미니 창문 (포차코)"]
[null,null,null,null,null,null,null,null,null,null,10500021,"열린 커튼 미니 창문 (리틀트윈스타)"]
[null,null,null,null,null,null,null,null,null,null,10500022,"열린 커튼 미니 창문 (한교동)"]
[null,null,null,null,null,null,null,null,null,null,10500023,"열린 커튼 미니 창문 (케로케로케로피)"]
[null,null,null,null,null,null,null,null,null,null,10500024,"열린 커튼 미니 창문 (배드바츠마루)"]
[null,null,null,null,null,null,null,null,null,null,10500025,"열린 커튼 미니 창문 (아히루노페클)"]
[null,null,null,null,null,null,null,null,null,null,10500026,"열린 커튼 미니 창문 (턱시도샘)"]
[null,null,null,null,null,null,null,null,null,null,10500027,"열린 커튼 미니 창문 (마이스윗피아노)"]
[null,null,null,null,null,null,null,null,null,null,10500028,"열린 커튼 미니 창문 (구데타마)"]
[null,null,null,null,null,null,null,null,null,null,10500029,"메뉴판 (헬로키티)"]
[null,null,null,null,null,null,null,null,null,null,10500030,"메뉴판 (시나모롤)"]
[null,null,null,null,null,null,null,null,null,null,10500031,"메뉴판 (폼폼푸린)"]
[null,null,null,null,null,null,null,null,null,null,10500032,"메뉴판 (쿠로미)"]
[null,null,null,null,null,null,null,null,null,null,10500033,"메뉴판 (마이 멜로디)"]
[null,null,null,null,null,null,null,null,null,null,10500034,"메뉴판 (포차코)"]
[null,null,null,null,null,null,null,null,null,null,10500035,"메뉴판 (리틀트윈스타)"]
[null,null,null,null,null,null,null,null,null,null,10500036,"메뉴판 (한교동)"]
[null,null,null,null,null,null,null,null,null,null,10500037,"메뉴판 (케로케로케로피)"]
[null,null,null,null,null,null,null,null,null,null,10500038,"메뉴판 (배드바츠마루)"]
[null,null,null,null,null,null,null,null,null,null,10500039,"메뉴판 (아히루노페클)"]
[null,null,null,null,null,null,null,null,null,null,10500040,"메뉴판 (턱시도샘)"]
[null,null,null,null,null,null,null,null,null,null,10500041,"메뉴판 (마이스윗피아노)"]
[null,null,null,null,null,null,null,null,null,null,10500042,"메뉴판 (구데타마)"]
[null,null,null,null,null,null,null,null,null,null,100088,"마른 빗자루"]
[null,null,null,null,null,null,null,null,null,null,100089,"시골 흙길"]
[null,null,null,null,null,null,null,null,null,null,100090,"노랑 덴파레 화단"]
[null,null,null,null,null,null,null,null,null,null,100091,"하양 덴파레 화단"]
[null,null,null,null,null,null,null,null,null,null,100092,"내츄럴 우드 작은 울타리"]
[null,null,null,null,null,null,null,null,null,null,100093,"화이트 우드 작은 울타리"]
[null,null,null,null,null,null,null,null,null,null,100094,"화이트 쿠션 라탄 의자"]
[null,null,null,null,null,null,null,null,null,null,100095,"화이트 쿠션 라탄 의자 뒷편"]
[null,null,null,null,null,null,null,null,null,null,100096,"내츄럴 스톤 잔디 길 1"]
[null,null,null,null,null,null,null,null,null,null,100097,"내츄럴 스톤 잔디 길 2"]
[null,null,null,null,null,null,null,null,null,null,100098,"클래식 화분 장식 가로등"]
[null,null,null,null,null,null,null,null,null,null,100099,"이삿짐 택배 상자 세트"]
[null,null,null,null,null,null,null,null,null,null,100100,"클래식 여행 가방"]
[null,null,null,null,null,null,null,null,null,null,100101,"내츄럴 우드 레이스 테이블"]
[null,null,null,null,null,null,null,null,null,null,100102,"화이트 꽃잎 벽 조명"]
[null,null,null,null,null,null,null,null,null,null,100103,"심플 베이지 벽 시계"]
[null,null,null,null,null,null,null,null,null,null,100104,"잘 보관된 편지 묶음"]
[null,null,null,null,null,null,null,null,null,null,100105,"레드 톤 책 묶음"]
[null,null,null,null,null,null,null,null,null,null,100106,"그린 톤 책 묶음"]
[null,null,null,null,null,null,null,null,null,null,100107,"봄빛 명패 달린 우든 도어"]
[null,null,null,null,null,null,null,null,null,null,100108,"화이트 우드 아치형 창문"]
[null,null,null,null,null,null,null,null,null,null,100109,"식물이 자라는 화이트 우드 아치형 창문"]
[null,null,null,null,null,null,null,null,null,null,100110,"책이 올려진 장식 벽 선반"]
[null,null,null,null,null,null,null,null,null,null,100111,"포근한 우드프레임 싱글 침대"]
[null,null,null,null,null,null,null,null,null,null,100112,"우드 배색 2단 책장"]
[null,null,null,null,null,null,null,null,null,null,100113,"포근한 우드프레임 2인 쇼파"]
[null,null,null,null,null,null,null,null,null,null,100114,"내추럴 우드 미니 옷걸이 프레임"]
[null,null,null,null,null,null,null,null,null,null,100115,"화이트 태슬 사각 대형 카펫"]
[null,null,null,null,null,null,null,null,null,null,100116,"핑크베이지 다이아 패턴 뽀송 카펫 "]
[null,null,null,null,null,null,null,null,null,null,100117,"모던 베이지 세로 줄무늬 벽지"]
[null,null,null,null,null,null,null,null,null,null,100118,"모던 베이지 격자무늬 바닥"]
[null,null,null,null,null,null,null,null,null,null,295,"비료"]
[null,null,null,null,null,null,null,null,null,null,296,"잉크"]
[null,null,null,null,null,null,null,null,null,null,297,"모래"]
[null,null,null,null,null,null,null,null,null,null,298,"붉은 페인트"]
[null,null,null,null,null,null,null,null,null,null,299,"붉은 염료"]
[null,null,null,null,null,null,null,null,null,null,300,"가죽 손목 시계"]
[null,null,null,null,null,null,null,null,null,null,301,"끈"]
[null,null,null,null,null,null,null,null,null,null,302,"녹용"]
[null,null,null,null,null,null,null,null,null,null,303,"라임청"]
[null,null,null,null,null,null,null,null,null,null,304,"럼주"]
[null,null,null,null,null,null,null,null,null,null,305,"멍발바닥 쿠션"]
[null,null,null,null,null,null,null,null,null,null,306,"민트 아로마 캔들"]
[null,null,null,null,null,null,null,null,null,null,307,"밀가루"]
[null,null,null,null,null,null,null,null,null,null,308,"바닐라 익스트랙"]
[null,null,null,null,null,null,null,null,null,null,309,"바이오 연료"]
[null,null,null,null,null,null,null,null,null,null,310,"바이오 플라스틱"]
[null,null,null,null,null,null,null,null,null,null,311,"반죽"]
[null,null,null,null,null,null,null,null,null,null,312,"버터"]
[null,null,null,null,null,null,null,null,null,null,313,"생크림"]
[null,null,null,null,null,null,null,null,null,null,314,"소풍 도시락 가방"]
[null,null,null,null,null,null,null,null,null,null,315,"솜사탕"]
[null,null,null,null,null,null,null,null,null,null,316,"스테레오 핀 마이크"]
[null,null,null,null,null,null,null,null,null,null,317,"스트랩 손목 보호대"]
[null,null,null,null,null,null,null,null,null,null,318,"시나몬 가루"]
[null,null,null,null,null,null,null,null,null,null,319,"식물성 기름"]
[null,null,null,null,null,null,null,null,null,null,320,"아몬드 가루"]
[null,null,null,null,null,null,null,null,null,null,321,"얼음"]
[null,null,null,null,null,null,null,null,null,null,322,"에탄올"]
[null,null,null,null,null,null,null,null,null,null,323,"전분"]
[null,null,null,null,null,null,null,null,null,null,324,"접착제"]
[null,null,null,null,null,null,null,null,null,null,325,"종이"]
[null,null,null,null,null,null,null,null,null,null,326,"천연 방부제"]
[null,null,null,null,null,null,null,null,null,null,327,"치즈"]
[null,null,null,null,null,null,null,null,null,null,328,"캐러멜"]
[null,null,null,null,null,null,null,null,null,null,329,"커피 찌꺼기"]
[null,null,null,null,null,null,null,null,null,null,330,"케첩"]
[null,null,null,null,null,null,null,null,null,null,331,"콘 스프"]
[null,null,null,null,null,null,null,null,null,null,332,"패션 화보 잡지"]
[null,null,null,null,null,null,null,null,null,null,333,"포레스트 일간지"]
[null,null,null,null,null,null,null,null,null,null,334,"프리미엄 펫 푸드"]
[null,null,null,null,null,null,null,null,null,null,335,"피톤치드"]
[null,null,null,null,null,null,null,null,null,null,336,"핑크 극세사 담요"]
[null,null,null,null,null,null,null,null,null,null,337,"병 우유"]
[null,null,null,null,null,null,null,null,null,null,338,"시나몬롤"]
[null,null,null,null,null,null,null,null,null,null,339,"푸딩"]
[null,null,null,null,null,null,null,null,null,null,340,"소녀의 일기장"]
[null,null,null,null,null,null,null,null,null,null,341,"할머니의 두건"]
[null,null,null,null,null,null,null,null,null,null,342,"바나나 아이스크림"]
[null,null,null,null,null,null,null,null,null,null,343,"별 솜사탕"]
[null,null,null,null,null,null,null,null,null,null,344,"나루토마키"]
[null,null,null,null,null,null,null,null,null,null,345,"주먹밥"]
[null,null,null,null,null,null,null,null,null,null,346,"왕관"]
[null,null,null,null,null,null,null,null,null,null,347,"양동이"]
[null,null,null,null,null,null,null,null,null,null,348,"팝콘"]
[null,null,null,null,null,null,null,null,null,null,349,"머랭 쿠키"]
[null,null,null,null,null,null,null,null,null,null,350,"베이컨 이불"]
[null,null,null,null,null,null,null,null,null,null,351,"옐로 홈파티 선물상자"]
[null,null,null,null,null,null,null,null,null,null,352,"블루 홈파티 선물상자"]
[null,null,null,null,null,null,null,null,null,null,353,"핑크 홈파티 선물상자"]
[null,null,null,null,null,null,null,null,null,null,354,"반짝이 솜뭉치"]
[null,null,null,null,null,null,null,null,null,null,355,"풍선"]
[null,null,null,null,null,null,null,null,null,null,356,"피냐타"]
[null,null,null,null,null,null,null,null,null,null,1000122,"배경 이미지1"]
[null,null,null,null,null,null,null,null,null,null,1000123,"배경 이미지2"]
[null,null,null,null,null,null,null,null,null,null,1000124,"배경 이미지3"]
[null,null,null,null,null,null,null,null,null,null,1000125,"배경 이미지4"]
[null,null,null,null,null,null,null,null,null,null,1000126,"배경이미지5"]
[null,null,null,null,null,null,null,null,null,null,1000127,"배경이미지6"]
[null,null,null,null,null,null,null,null,null,null,357,"일반 낚싯대"]
[null,null,null,null,null,null,null,null,null,null,358,"스페셜 낚싯대"]
[null,null,null,null,null,null,null,null,null,null,359,"잃어버린 장화"]
[null,null,null,null,null,null,null,null,null,null,360,"녹슨 깡통"]
[null,null,null,null,null,null,null,null,null,null,361,"깨진 조개껍데기"]
[null,null,null,null,null,null,null,null,null,null,362,"바닷속 돌"]
[null,null,null,null,null,null,null,null,null,null,363,"낡은 목걸이"]
[null,null,null,null,null,null,null,null,null,null,364,"멸치"]
[null,null,null,null,null,null,null,null,null,null,365,"송사리"]
[null,null,null,null,null,null,null,null,null,null,366,"금붕어"]
[null,null,null,null,null,null,null,null,null,null,367,"물멍게"]
[null,null,null,null,null,null,null,null,null,null,368,"잉어치"]
[null,null,null,null,null,null,null,null,null,null,369,"해마"]
[null,null,null,null,null,null,null,null,null,null,370,"고등어"]
[null,null,null,null,null,null,null,null,null,null,371,"전갱이"]
[null,null,null,null,null,null,null,null,null,null,372,"도미"]
[null,null,null,null,null,null,null,null,null,null,373,"코인"]
[null,null,null,null,null,null,null,null,null,null,374,"시나모롤 코인"]
[null,null,null,null,null,null,null,null,null,null,10500097,"쿠로미의 럭셔리 샴푸 의자"]
[null,null,null,null,null,null,null,null,null,null,10500098,"쿠로미의 핑크 미용 카트"]
[null,null,null,null,null,null,null,null,null,null,10500099,"쿠로미 데코 대형 라커"]
[null,null,null,null,null,null,null,null,null,null,10500100,"쿠로미의 럭셔리 웨이팅 쇼파"]
[null,null,null,null,null,null,null,null,null,null,10500101,"쿠로미의 헤어샵 프론트"]
[null,null,null,null,null,null,null,null,null,null,10500102,"쿠로미의 후드 드라이어"]
[null,null,null,null,null,null,null,null,null,null,10500103,"쿠로미의 헤어샵 좌석 세트"]
[null,null,null,null,null,null,null,null,null,null,10500104,"하트 해골 벽걸이 조명"]
[null,null,null,null,null,null,null,null,null,null,10500105,"쿠로미의 미용실 빌트인 선반"]
[null,null,null,null,null,null,null,null,null,null,10500106,"쿠로미의 미용실 출입문"]
[null,null,null,null,null,null,null,null,null,null,10500107,"쿠로미의 미용실 창문"]
[null,null,null,null,null,null,null,null,null,null,10500108,"쿠로미의 Welcome 미니 러그"]
[null,null,null,null,null,null,null,null,null,null,10500109,"쿠로미의 미용실 벽지"]
[null,null,null,null,null,null,null,null,null,null,10500110,"쿠로미의 미용실 바닥"]
[null,null,null,null,null,null,null,null,null,null,100187,"천상의 계단"]
[null,null,null,null,null,null,null,null,null,null,100188,"왕좌의 2단 계단"]
[null,null,null,null,null,null,null,null,null,null,375,"도끼"]
[null,null,null,null,null,null,null,null,null,null,10500043,"플레이스퀘어 리사이클링함"]